Workbook

Sheet Orçamentária
B1: Ata de Registro de Preços para Reformas no SF - 2018/2019
B2: PLANILHA ORÇAMENTÁRIA
B3: Data: Setembro de 2018 (data-base: Sinapi ago/2018, Pini ago/2018 e Orse jul/2018)
A4: - | B4: Número-SF | C4: Grande Área | D4: Categoria | E4: DISCRIMINAÇÃO | F4: UN | G4: QUANT. TOTAL | H4: PREÇO UNITÁRIO | I4: CUSTO DIRETO | J4: BDI (%) | K4: PREÇO UNITÁRIO COM BDI | L4: CUSTO TOTAL | M4: FONTE/CÓD./OBS.
A5: - | B5: SF-00001 | C5: Serviços de Apoio | D5: Serviços Técnicos | E5: Engenheiro(a) /Arquiteto(a) júnior | F5: hh | G5: 3000 | H5: =OFFSET(INDEX(Composições!A:M,MATCH(E5,Composições!B:B,0),13),2,0) -> 72.15 | I5: =IF(ISNUMBER(H5),ROUND(G5*H5,2),"-") -> 216450 | J5: =BDI!$B$17 -> 0.2033593242 | K5: =IF(ISNUMBER(H5),ROUND(H5*(1+J5),2),0) -> 86.82 | L5: =ROUND(K5*G5,2) -> 260460 | M5: Sinapi 90777
A6: - | B6: SF-00002 | C6: Serviços de Apoio | D6: Serviços Técnicos | E6: Mestre de obras | F6: hh | G6: 6000 | H6: =OFFSET(INDEX(Composições!A:M,MATCH(E6,Composições!B:B,0),13),2,0) -> 21.75 | I6: =IF(ISNUMBER(H6),ROUND(G6*H6,2),"-") -> 130500 | J6: =BDI!$B$17 -> 0.2033593242 | K6: =IF(ISNUMBER(H6),ROUND(H6*(1+J6),2),0) -> 26.17 | L6: =ROUND(K6*G6,2) -> 157020 | M6: Sinapi 90780
A7: - | B7: SF-00003 | C7: Serviços de Apoio | D7: Serviços Técnicos | E7: Planejamento físico-financeiro | F7: un | G7: 10 | H7: =OFFSET(INDEX(Composições!A:M,MATCH(E7,Composições!B:B,0),13),2,0) -> 1313.14 | I7: 13131.4 | J7: =BDI!$B$17 -> 0.2033593242 | K7: 1580.18 | L7: 15801.8 | M7: Senado Federal
A8: - | B8: SF-00004 | C8: Serviços de Apoio | D8: Serviços Técnicos | E8: Projetos de segurança do trabalho | F8: un | G8: 5 | H8: =OFFSET(INDEX(Composições!A:M,MATCH(E8,Composições!B:B,0),13),2,0) -> 1838.11 | I8: 9190.55 | J8: =BDI!$B$17 -> 0.2033593242 | K8: 2211.91 | L8: 11059.55 | M8: Senado Federal
B9: SF-00005 | C9: Serviços de Apoio | D9: Serviços Preliminares | E9: Demolição de alvenarias | F9: m3 | G9: 8 | H9: =OFFSET(INDEX(Composições!A:M,MATCH(E9,Composições!B:B,0),13),2,0) -> 34.69 | I9: 277.52 | J9: =BDI!$B$17 -> 0.2033593242 | K9: 41.74 | L9: 333.92 | M9: Sinapi 97622
B10: SF-00006 | C10: Serviços de Apoio | D10: Serviços Preliminares | E10: Demolição de concreto simples | F10: m3 | G10: 20 | H10: =OFFSET(INDEX(Composições!A:M,MATCH(E10,Composições!B:B,0),13),2,0) -> 194.72 | I10: 3894.4 | J10: =BDI!$B$17 -> 0.2033593242 | K10: 234.32 | L10: 4686.4 | M10: Seinfra C1049 Adaptada
B11: SF-00007 | C11: Serviços de Apoio | D11: Serviços Preliminares | E11: Demolição de contrapiso | F11: m2 | G11: 500 | H11: =OFFSET(INDEX(Composições!A:M,MATCH(E11,Composições!B:B,0),13),2,0) -> 9.22 | I11: 4610 | J11: =BDI!$B$17 -> 0.2033593242 | K11: 11.09 | L11: 5545 | M11: SCO/RJ - SC 05.05.0800 Adaptada
B12: SF-00008 | C12: Serviços de Apoio | D12: Serviços Preliminares | E12: Demolição de fechamento ou divisória em gesso acartonado | F12: m2 | G12: 100 | H12: =OFFSET(INDEX(Composições!A:M,MATCH(E12,Composições!B:B,0),13),2,0) -> 4.64 | I12: 464 | J12: =BDI!$B$17 -> 0.2033593242 | K12: 5.58 | L12: 558 | M12: Sinapi 97638
B13: SF-00009 | C13: Serviços de Apoio | D13: Serviços Preliminares | E13: Demolição de forro de gesso | F13: m2 | G13: 3300 | H13: =OFFSET(INDEX(Composições!A:M,MATCH(E13,Composições!B:B,0),13),2,0) -> 3.14 | I13: 10362 | J13: =BDI!$B$17 -> 0.2033593242 | K13: 3.78 | L13: 12474 | M13: Sinapi 97641
B14: SF-00010 | C14: Serviços de Apoio | D14: Serviços Preliminares | E14: Demolição de infraestrutura elétrica (eletrodutos, eletrocalhas, cabos) | F14: m | G14: 5000 | H14: =OFFSET(INDEX(Composições!A:M,MATCH(E14,Composições!B:B,0),13),2,0) -> 2.12 | I14: 10600 | J14: =BDI!$B$17 -> 0.2033593242 | K14: 2.55 | L14: 12750 | M14: Sinapi 97661 Adaptada
B15: SF-00011 | C15: Serviços de Apoio | D15: Serviços Preliminares | E15: Demolição de revestimento cerâmico, granito, mármore ou granitina | F15: m2 | G15: 340 | H15: =OFFSET(INDEX(Composições!A:M,MATCH(E15,Composições!B:B,0),13),2,0) -> 7.72 | I15: 2624.8 | J15: =BDI!$B$17 -> 0.2033593242 | K15: 9.29 | L15: 3158.6 | M15: Sinapi 97634
B16: SF-00012 | C16: Serviços de Apoio | D16: Serviços Preliminares | E16: Demolição de revestimento em argamassa | F16: m2 | G16: 2000 | H16: =OFFSET(INDEX(Composições!A:M,MATCH(E16,Composições!B:B,0),13),2,0) -> 2.07 | I16: 4140 | J16: =BDI!$B$17 -> 0.2033593242 | K16: 2.49 | L16: 4980 | M16: Sinapi 97631
B17: SF-00013 | C17: Serviços de Apoio | D17: Serviços Preliminares | E17: Demolição de tubulação hidrossanitária embutida com conexões e acessórios | F17: m | G17: 100 | H17: =OFFSET(INDEX(Composições!A:M,MATCH(E17,Composições!B:B,0),13),2,0) -> 0.31 | I17: 31 | J17: =BDI!$B$17 -> 0.2033593242 | K17: 0.37 | L17: 37 | M17: Sinapi 97662
B18: SF-00014 | C18: Serviços de Apoio | D18: Serviços Preliminares | E18: Demolição em concreto armado | F18: m3 | G18: 10 | H18: =OFFSET(INDEX(Composições!A:M,MATCH(E18,Composições!B:B,0),13),2,0) -> 167.94 | I18: 1679.4 | J18: =BDI!$B$17 -> 0.2033593242 | K18: 202.09 | L18: 2020.9 | M18: Sinapi 97627
B19: SF-00015 | C19: Serviços de Apoio | D19: Serviços Preliminares | E19: Locação de caçambas | F19: un | G19: 110 | H19: 330 | I19: 36300 | J19: =BDI!$B$17 -> 0.2033593242 | K19: 397.11 | L19: 43682.1 | M19: Pesquisa Simples
B20: SF-00016 | C20: Serviços de Apoio | D20: Serviços Preliminares | E20: Remoção de armários | F20: m2 | G20: 240 | H20: =OFFSET(INDEX(Composições!A:M,MATCH(E20,Composições!B:B,0),13),2,0) -> 10.93 | I20: 2623.2 | J20: =BDI!$B$17 -> 0.2033593242 | K20: 13.15 | L20: 3156 | M20: SCO/RJ - SC 05.05.1750 Adaptada
B21: SF-00017 | C21: Serviços de Apoio | D21: Serviços Preliminares | E21: Remoção de bancadas | F21: m2 | G21: 40 | H21: =OFFSET(INDEX(Composições!A:M,MATCH(E21,Composições!B:B,0),13),2,0) -> 15.89 | I21: 635.6 | J21: =BDI!$B$17 -> 0.2033593242 | K21: 19.12 | L21: 764.8 | M21: Orse 8387 Adaptada
B22: SF-00018 | C22: Serviços de Apoio | D22: Serviços Preliminares | E22: Remoção de batentes de madeira | F22: un | G22: 20 | H22: =OFFSET(INDEX(Composições!A:M,MATCH(E22,Composições!B:B,0),13),2,0) -> 4.05 | I22: 81 | J22: =BDI!$B$17 -> 0.2033593242 | K22: 4.87 | L22: 97.4 | M22: Sinapi 97644 Adaptada
B23: SF-00019 | C23: Serviços de Apoio | D23: Serviços Preliminares | E23: Remoção de canaleta em alumínio | F23: m | G23: 300 | H23: =OFFSET(INDEX(Composições!A:M,MATCH(E23,Composições!B:B,0),13),2,0) -> 3.34 | I23: 1002 | J23: =BDI!$B$17 -> 0.2033593242 | K23: 4.02 | L23: 1206 | M23: Orse 010276 Adaptada
B24: SF-00020 | C24: Serviços de Apoio | D24: Serviços Preliminares | E24: Remoção de carpete | F24: m2 | G24: 400 | H24: =OFFSET(INDEX(Composições!A:M,MATCH(E24,Composições!B:B,0),13),2,0) -> 1.49 | I24: 596 | J24: =BDI!$B$17 -> 0.2033593242 | K24: 1.79 | L24: 716 | M24: Pini 02.102.000043.SER Adaptada
B25: SF-00021 | C25: Serviços de Apoio | D25: Serviços Preliminares | E25: Remoção de cortinas | F25: m | G25: 50 | H25: =OFFSET(INDEX(Composições!A:M,MATCH(E25,Composições!B:B,0),13),2,0) -> 2.68 | I25: 134 | J25: =BDI!$B$17 -> 0.2033593242 | K25: 3.23 | L25: 161.5 | M25: SBC 022086
B26: SF-00022 | C26: Serviços de Apoio | D26: Serviços Preliminares | E26: Remoção de difusores, grelhas e acessórios de climatização | F26: un | G26: 120 | H26: =OFFSET(INDEX(Composições!A:M,MATCH(E26,Composições!B:B,0),13),2,0) -> 16.36 | I26: 1963.2 | J26: =BDI!$B$17 -> 0.2033593242 | K26: 19.69 | L26: 2362.8 | M26: Orse 08857 Adaptada
B27: SF-00023 | C27: Serviços de Apoio | D27: Serviços Preliminares | E27: Remoção de divisória de mármore ou granito | F27: m2 | G27: 60 | H27: =OFFSET(INDEX(Composições!A:M,MATCH(E27,Composições!B:B,0),13),2,0) -> 24.77 | I27: 1486.2 | J27: =BDI!$B$17 -> 0.2033593242 | K27: 29.81 | L27: 1788.6 | M27: Seinfra C1051 Adaptada
B28: SF-00024 | C28: Serviços de Apoio | D28: Serviços Preliminares | E28: Remoção de divisórias de MDF e gesso acartonado | F28: m2 | G28: 250 | H28: =OFFSET(INDEX(Composições!A:M,MATCH(E28,Composições!B:B,0),13),2,0) -> 21.65 | I28: 5412.5 | J28: =BDI!$B$17 -> 0.2033593242 | K28: 26.05 | L28: 6512.5 | M28: Sinapi 72178
A29: - | B29: SF-00025 | C29: Serviços de Apoio | D29: Serviços Preliminares | E29: Remoção de dutos/tubulações | F29: m | G29: 2000 | H29: =OFFSET(INDEX(Composições!A:M,MATCH(E29,Composições!B:B,0),13),2,0) -> 7.12 | I29: 14240 | J29: =BDI!$B$17 -> 0.2033593242 | K29: 8.57 | L29: 17140 | M29: Seinfra C3389 Adaptada
B30: SF-00026 | C30: Serviços de Apoio | D30: Serviços Preliminares | E30: Remoção de esquadrias metálicas | F30: m2 | G30: 100 | H30: =OFFSET(INDEX(Composições!A:M,MATCH(E30,Composições!B:B,0),13),2,0) -> 7.5 | I30: 750 | J30: =BDI!$B$17 -> 0.2033593242 | K30: 9.03 | L30: 903 | M30: Pini 02.102.000031.SER Adaptada
B31: SF-00027 | C31: Serviços de Apoio | D31: Serviços Preliminares | E31: Remoção de exaustor | F31: un | G31: 20 | H31: =OFFSET(INDEX(Composições!A:M,MATCH(E31,Composições!B:B,0),13),2,0) -> 15.65 | I31: 313 | J31: =BDI!$B$17 -> 0.2033593242 | K31: 18.83 | L31: 376.6 | M31: Orse 11102 Adaptada
B32: SF-00028 | C32: Serviços de Apoio | D32: Serviços Preliminares | E32: Remoção de ferragens de porta | F32: un | G32: 100 | H32: =OFFSET(INDEX(Composições!A:M,MATCH(E32,Composições!B:B,0),13),2,0) -> 4.51 | I32: 451 | J32: =BDI!$B$17 -> 0.2033593242 | K32: 5.43 | L32: 543 | M32: Orse 04859 Adaptada
B33: SF-00029 | C33: Serviços de Apoio | D33: Serviços Preliminares | E33: Remoção de folha de porta | F33: un | G33: 60 | H33: =OFFSET(INDEX(Composições!A:M,MATCH(E33,Composições!B:B,0),13),2,0) -> 5.79 | I33: 347.4 | J33: =BDI!$B$17 -> 0.2033593242 | K33: 6.97 | L33: 418.2 | M33: Sinapi 97644
B34: SF-00030 | C34: Serviços de Apoio | D34: Serviços Preliminares | E34: Remoção de laminado melamínico (LDAP), em PVC ou vinílico | F34: m2 | G34: 1000 | H34: =OFFSET(INDEX(Composições!A:M,MATCH(E34,Composições!B:B,0),13),2,0) -> 13.48 | I34: 13480 | J34: =BDI!$B$17 -> 0.2033593242 | K34: 16.22 | L34: 16220 | M34: Pini 02.102.000044.SER Adaptada
B35: SF-00031 | C35: Serviços de Apoio | D35: Serviços Preliminares | E35: Remoção de louças | F35: un | G35: 120 | H35: =OFFSET(INDEX(Composições!A:M,MATCH(E35,Composições!B:B,0),13),2,0) -> 7.72 | I35: 926.4 | J35: =BDI!$B$17 -> 0.2033593242 | K35: 9.29 | L35: 1114.8 | M35: Sinapi 97663
B36: SF-00032 | C36: Serviços de Apoio | D36: Serviços Preliminares | E36: Remoção de luminária | F36: un | G36: 500 | H36: =OFFSET(INDEX(Composições!A:M,MATCH(E36,Composições!B:B,0),13),2,0) -> 4.04 | I36: 2020 | J36: =BDI!$B$17 -> 0.2033593242 | K36: 4.86 | L36: 2430 | M36: Sinapi 97665 Adaptada
B37: SF-00033 | C37: Serviços de Apoio | D37: Serviços Preliminares | E37: Remoção de metais e acessórios | F37: un | G37: 300 | H37: =OFFSET(INDEX(Composições!A:M,MATCH(E37,Composições!B:B,0),13),2,0) -> 5.62 | I37: 1686 | J37: =BDI!$B$17 -> 0.2033593242 | K37: 6.76 | L37: 2028 | M37: Sinapi 97666
B38: SF-00034 | C38: Serviços de Apoio | D38: Serviços Preliminares | E38: Remoção de painéis de vidro temperado | F38: m2 | G38: 460 | H38: =OFFSET(INDEX(Composições!A:M,MATCH(E38,Composições!B:B,0),13),2,0) -> 10.96 | I38: 5041.6 | J38: =BDI!$B$17 -> 0.2033593242 | K38: 13.19 | L38: 6067.4 | M38: Orse 4715 Adaptada
B39: SF-00035 | C39: Serviços de Apoio | D39: Serviços Preliminares | E39: Remoção de película | F39: m2 | G39: 80 | H39: 18 | I39: 1440 | J39: =BDI!$B$17 -> 0.2033593242 | K39: 21.66 | L39: 1732.8 | M39: Pesquisa Simples
B40: SF-00036 | C40: Serviços de Apoio | D40: Serviços Preliminares | E40: Remoção de persianas | F40: m | G40: 150 | H40: =OFFSET(INDEX(Composições!A:M,MATCH(E40,Composições!B:B,0),13),2,0) -> 2.64 | I40: 396 | J40: =BDI!$B$17 -> 0.2033593242 | K40: 3.18 | L40: 477 | M40: Senado Federal
B41: SF-00037 | C41: Serviços de Apoio | D41: Serviços Preliminares | E41: Remoção de pintura ou textura | F41: m2 | G41: 5800 | H41: =OFFSET(INDEX(Composições!A:M,MATCH(E41,Composições!B:B,0),13),2,0) -> 5.27 | I41: 30566 | J41: =BDI!$B$17 -> 0.2033593242 | K41: 6.34 | L41: 36772 | M41: Orse 7725 Adaptada
B42: SF-00038 | C42: Serviços de Apoio | D42: Serviços Preliminares | E42: Remoção de placas de forro | F42: m2 | G42: 200 | H42: =OFFSET(INDEX(Composições!A:M,MATCH(E42,Composições!B:B,0),13),2,0) -> 3.12 | I42: 624 | J42: =BDI!$B$17 -> 0.2033593242 | K42: 3.75 | L42: 750 | M42: Sinapi 97640 Adaptada
B43: SF-00039 | C43: Serviços de Apoio | D43: Serviços Preliminares | E43: Remoção de quadros de elétricos ou de telecomunicações | F43: un | G43: 30 | H43: =OFFSET(INDEX(Composições!A:M,MATCH(E43,Composições!B:B,0),13),2,0) -> 47.47 | I43: 1424.1 | J43: =BDI!$B$17 -> 0.2033593242 | K43: 57.12 | L43: 1713.6 | M43: Senado Federal
B44: SF-00040 | C44: Serviços de Apoio | D44: Serviços Preliminares | E44: Remoção de revestimento acústico | F44: m2 | G44: 440 | H44: =OFFSET(INDEX(Composições!A:M,MATCH(E44,Composições!B:B,0),13),2,0) -> 2.64 | I44: 1161.6 | J44: =BDI!$B$17 -> 0.2033593242 | K44: 3.18 | L44: 1399.2 | M44: Senado Federal
B45: SF-00041 | C45: Serviços de Apoio | D45: Serviços Preliminares | E45: Remoção de rodapé de mármore ou granito | F45: m | G45: 100 | H45: =OFFSET(INDEX(Composições!A:M,MATCH(E45,Composições!B:B,0),13),2,0) -> 5.75 | I45: 575 | J45: =BDI!$B$17 -> 0.2033593242 | K45: 6.92 | L45: 692 | M45: Orse 4858 Adaptada
B46: SF-00042 | C46: Serviços de Apoio | D46: Serviços Preliminares | E46: Remoção de rodapés de madeira | F46: m2 | G46: 10 | H46: =OFFSET(INDEX(Composições!A:M,MATCH(E46,Composições!B:B,0),13),2,0) -> 4.83 | I46: 48.3 | J46: =BDI!$B$17 -> 0.2033593242 | K46: 5.81 | L46: 58.1 | M46: Orse 10235 Adaptada
B47: SF-00043 | C47: Serviços de Apoio | D47: Serviços Preliminares | E47: Remoção de soleira de mármore ou granito | F47: m | G47: 20 | H47: =OFFSET(INDEX(Composições!A:M,MATCH(E47,Composições!B:B,0),13),2,0) -> 7.25 | I47: 145 | J47: =BDI!$B$17 -> 0.2033593242 | K47: 8.72 | L47: 174.4 | M47: Pini 02.102.000042.SER Adaptada
B48: SF-00044 | C48: Serviços de Apoio | D48: Serviços Preliminares | E48: Remoção de split/fancolete (equipamento unitário) | F48: un | G48: 200 | H48: =OFFSET(INDEX(Composições!A:M,MATCH(E48,Composições!B:B,0),13),2,0) -> 33.07 | I48: 6614 | J48: =BDI!$B$17 -> 0.2033593242 | K48: 39.8 | L48: 7960 | M48: Senado Federal
B49: SF-00045 | C49: Serviços de Apoio | D49: Serviços Preliminares | E49: Remoção de vidro comum | F49: m2 | G49: 40 | H49: =OFFSET(INDEX(Composições!A:M,MATCH(E49,Composições!B:B,0),13),2,0) -> 11.02 | I49: 440.8 | J49: =BDI!$B$17 -> 0.2033593242 | K49: 13.26 | L49: 530.4 | M49: Sinapi 85421
B50: SF-00046 | C50: Serviços de Apoio | D50: Serviços Preliminares | E50: Retirada de entulhos | F50: m3 | G50: 410 | H50: =OFFSET(INDEX(Composições!A:M,MATCH(E50,Composições!B:B,0),13),2,0) -> 13.17 | I50: 5399.7 | J50: =BDI!$B$17 -> 0.2033593242 | K50: 15.85 | L50: 6498.5 | M50: Orse 0026 Adaptada
B51: SF-00047 | C51: Serviços de Apoio | D51: Segurança do Trabalho | E51: Absorvedor de energia | F51: un | G51: 5 | H51: 544.32 | I51: 2721.6 | J51: =BDI!$B$17 -> 0.2033593242 | K51: 655.01 | L51: 3275.05 | M51: Pesquisa Simples
B52: SF-00048 | C52: Serviços de Apoio | D52: Segurança do Trabalho | E52: Andaime fachadeiro | F52: m2/mês | G52: 350 | H52: 3.99 | I52: 1396.5 | J52: =BDI!$B$17 -> 0.2033593242 | K52: 4.8 | L52: 1680 | M52: Sinapi 20193
B53: SF-00049 | C53: Serviços de Apoio | D53: Segurança do Trabalho | E53: Andaime tubular (aluguel/mês) | F53: m/mês | G53: 70 | H53: 10.13 | I53: 709.1 | J53: =BDI!$B$17 -> 0.2033593242 | K53: 12.19 | L53: 853.3 | M53: Pesquisa Simples
B54: SF-00050 | C54: Serviços de Apoio | D54: Segurança do Trabalho | E54: Cabo de aço com 8 mm de diâmetro galvanizado | F54: m | G54: 280 | H54: 5.02 | I54: 1405.6 | J54: =BDI!$B$17 -> 0.2033593242 | K54: 6.04 | L54: 1691.2 | M54: Pesquisa Simples
B55: SF-00051 | C55: Serviços de Apoio | D55: Segurança do Trabalho | E55: Corda de poliamida 12 mm tipo bombeiro, para trabalho em altura | F55: m | G55: 84 | H55: 4.52 | I55: 379.68 | J55: =BDI!$B$17 -> 0.2033593242 | K55: 5.44 | L55: 456.96 | M55: Sinapi 38200
B56: SF-00052 | C56: Serviços de Apoio | D56: Segurança do Trabalho | E56: Ensaio de ponto de ancoragem existente | F56: un | G56: 28 | H56: 30.52 | I56: 854.56 | J56: =BDI!$B$17 -> 0.2033593242 | K56: 36.73 | L56: 1028.44 | M56: Pesquisa Simples
A57: - | B57: SF-00053 | C57: Serviços de Apoio | D57: Segurança do Trabalho | E57: Escadas de acesso para andaime tubular | F57: m/mês | G57: 40 | H57: 7.67 | I57: 306.8 | J57: =BDI!$B$17 -> 0.2033593242 | K57: 9.23 | L57: 369.2 | M57: Pesquisa Simples
B58: SF-00054 | C58: Serviços de Apoio | D58: Segurança do Trabalho | E58: Esticador de cabo de aço | F58: un | G58: 5 | H58: 104.83 | I58: 524.15 | J58: =BDI!$B$17 -> 0.2033593242 | K58: 126.15 | L58: 630.75 | M58: Pesquisa Simples
B59: SF-00055 | C59: Serviços de Apoio | D59: Segurança do Trabalho | E59: Guarda-corpo com rodapé para andaime tubular | F59: m/mês | G59: 50 | H59: 6.49 | I59: 324.5 | J59: =BDI!$B$17 -> 0.2033593242 | K59: 7.81 | L59: 390.5 | M59: Pesquisa Simples
B60: SF-00056 | C60: Serviços de Apoio | D60: Segurança do Trabalho | E60: Indicador de tensão | F60: un | G60: 5 | H60: 808.81 | I60: 4044.05 | J60: =BDI!$B$17 -> 0.2033593242 | K60: 973.29 | L60: 4866.45 | M60: Pesquisa Simples
B61: SF-00057 | C61: Serviços de Apoio | D61: Segurança do Trabalho | E61: Isolamento de obra com tela plástica com malha de 5mm e estrutura de madeira pontaleteada | F61: m2 | G61: 280 | H61: =OFFSET(INDEX(Composições!A:M,MATCH(E61,Composições!B:B,0),13),2,0) -> 19.05 | I61: 5334 | J61: =BDI!$B$17 -> 0.2033593242 | K61: 22.92 | L61: 6417.6 | M61: Sinapi 85424
B62: SF-00058 | C62: Serviços de Apoio | D62: Segurança do Trabalho | E62: Kit de curva | F62: un | G62: 5 | H62: 915.58 | I62: 4577.9 | J62: =BDI!$B$17 -> 0.2033593242 | K62: 1101.77 | L62: 5508.85 | M62: Pesquisa Simples
B63: SF-00059 | C63: Serviços de Apoio | D63: Segurança do Trabalho | E63: Kit de linha de vida para escada de marinheiro | F63: un | G63: 4 | H63: 799.99 | I63: 3199.96 | J63: =BDI!$B$17 -> 0.2033593242 | K63: 962.68 | L63: 3850.72 | M63: Pesquisa Simples
B64: SF-00060 | C64: Serviços de Apoio | D64: Segurança do Trabalho | E64: Kit para montagem de dois olhais | F64: un | G64: 5 | H64: 140.5 | I64: 702.5 | J64: =BDI!$B$17 -> 0.2033593242 | K64: 169.07 | L64: 845.35 | M64: Pesquisa Simples
B65: SF-00061 | C65: Serviços de Apoio | D65: Segurança do Trabalho | E65: Manilha com travamento por porca e cupilha | F65: un | G65: 14 | H65: 39.29 | I65: 550.06 | J65: =BDI!$B$17 -> 0.2033593242 | K65: 47.28 | L65: 661.92 | M65: Pesquisa Simples
B66: SF-00062 | C66: Serviços de Apoio | D66: Segurança do Trabalho | E66: Pilar de ancoragem | F66: un | G66: 14 | H66: 610.38 | I66: 8545.32 | J66: =BDI!$B$17 -> 0.2033593242 | K66: 734.51 | L66: 10283.14 | M66: Pesquisa Simples
B67: SF-00063 | C67: Serviços de Apoio | D67: Segurança do Trabalho | E67: Piso metálico para andaime tubular | F67: m2/mês | G67: 50 | H67: 8.77 | I67: 438.5 | J67: =BDI!$B$17 -> 0.2033593242 | K67: 10.55 | L67: 527.5 | M67: Pesquisa Simples
B68: SF-00064 | C68: Serviços de Apoio | D68: Segurança do Trabalho | E68: Placa de ancoragem para extremidade | F68: un | G68: 10 | H68: 296.96 | I68: 2969.6 | J68: =BDI!$B$17 -> 0.2033593242 | K68: 357.35 | L68: 3573.5 | M68: Pesquisa Simples
B69: SF-00065 | C69: Serviços de Apoio | D69: Segurança do Trabalho | E69: Placa de ancoragem para montagem no pilar | F69: un | G69: 10 | H69: 133 | I69: 1330 | J69: =BDI!$B$17 -> 0.2033593242 | K69: 160.05 | L69: 1600.5 | M69: Pesquisa Simples
B70: SF-00066 | C70: Serviços de Apoio | D70: Segurança do Trabalho | E70: Ponto de ancoragem | F70: un | G70: 32 | H70: 116.1 | I70: =IF(ISNUMBER(H70),ROUND(G70*H70,2),"-") -> 3715.2 | J70: =BDI!$B$17 -> 0.2033593242 | K70: =IF(ISNUMBER(H70),ROUND(H70*(1+J70),2),0) -> 139.71 | L70: =ROUND(K70*G70,2) -> 4470.72 | M70: Pesquisa Simples
B71: SF-00067 | C71: Serviços de Apoio | D71: Segurança do Trabalho | E71: Sapatas e rodízios para andaime tubular | F71: mês | G71: 25 | H71: 21.04 | I71: 526 | J71: =BDI!$B$17 -> 0.2033593242 | K71: 25.32 | L71: 633 | M71: Pesquisa Simples
B72: SF-00068 | C72: Serviços de Apoio | D72: Segurança do Trabalho | E72: Sistema Guarda-corpo-Rodapé (GcR) metálico | F72: m/mês | G72: 315 | H72: 9.16 | I72: 2885.4 | J72: =BDI!$B$17 -> 0.2033593242 | K72: 11.02 | L72: 3471.3 | M72: Pesquisa Simples
B73: SF-00069 | C73: Serviços de Apoio | D73: Segurança do Trabalho | E73: Suporte intermediário | F73: un | G73: 17 | H73: 252.01 | I73: 4284.17 | J73: =BDI!$B$17 -> 0.2033593242 | K73: 303.26 | L73: 5155.42 | M73: Pesquisa Simples
B74: SF-00070 | C74: Serviços de Apoio | D74: Segurança do Trabalho | E74: Tapume | F74: m2 | G74: 30 | H74: =OFFSET(INDEX(Composições!A:M,MATCH(E74,Composições!B:B,0),13),2,0) -> 48.78 | I74: 1463.4 | J74: =BDI!$B$17 -> 0.2033593242 | K74: 58.7 | L74: 1761 | M74: Sinapi 74220/1
B75: SF-00071 | C75: Serviços de Apoio | D75: Segurança do Trabalho | E75: Trole com mosquetão | F75: un | G75: 5 | H75: 645.19 | I75: 3225.95 | J75: =BDI!$B$17 -> 0.2033593242 | K75: 776.4 | L75: 3882 | M75: Pesquisa Simples
B76: SF-00072 | C76: Serviços de Apoio | D76: Segurança do Trabalho | E76: Trole para travaqueda retrátil | F76: un | G76: 3 | H76: 1644.74 | I76: 4934.22 | J76: =BDI!$B$17 -> 0.2033593242 | K76: 1979.21 | L76: 5937.63 | M76: Pesquisa Simples
B77: SF-00073 | C77: Serviços de Apoio | D77: Limpeza | E77: Limpeza final de obra | F77: m2 | G77: 3400 | H77: =OFFSET(INDEX(Composições!A:M,MATCH(E77,Composições!B:B,0),13),2,0) -> 1.82 | I77: 6188 | J77: =BDI!$B$17 -> 0.2033593242 | K77: 2.19 | L77: 7446 | M77: ORSE 02450 Adaptada
B78: SF-00074 | C78: Civil | D78: Furos, Rasgos e Escariação | E78: Abertura/fechamento rasgo em alvenaria | F78: m | G78: 3000 | H78: =OFFSET(INDEX(Composições!A:M,MATCH(E78,Composições!B:B,0),13),2,0) -> 13.37 | I78: 40110 | J78: =BDI!$B$17 -> 0.2033593242 | K78: 16.09 | L78: 48270 | M78: Sinapi 90447 + Sinapi 90466
B79: SF-00075 | C79: Civil | D79: Furos, Rasgos e Escariação | E79: Furo em concreto de até 75mm de diâmetro | F79: un | G79: 20 | H79: =OFFSET(INDEX(Composições!A:M,MATCH(E79,Composições!B:B,0),13),2,0) -> 67.62 | I79: 1352.4 | J79: =BDI!$B$17 -> 0.2033593242 | K79: 81.37 | L79: 1627.4 | M79: Sinapi 90440
B80: SF-00076 | C80: Civil | D80: Furos, Rasgos e Escariação | E80: Furo em concreto para diâmetros maiores que 75mm | F80: un | G80: 20 | H80: =OFFSET(INDEX(Composições!A:M,MATCH(E80,Composições!B:B,0),13),2,0) -> 86.36 | I80: 1727.2 | J80: =BDI!$B$17 -> 0.2033593242 | K80: 103.92 | L80: 2078.4 | M80: Sinapi 90441
B81: SF-00077 | C81: Civil | D81: Estrutural | E81: Concreto virado em betoneira, Fck = 15 MPa | F81: m3 | G81: 10 | H81: =OFFSET(INDEX(Composições!A:M,MATCH(E81,Composições!B:B,0),13),2,0) -> 401.51 | I81: 4015.1 | J81: =BDI!$B$17 -> 0.2033593242 | K81: 483.16 | L81: 4831.6 | M81: Sinapi 92873 + Sinapi 94963
B82: SF-00078 | C82: Civil | D82: Estrutural | E82: Concreto virado em betoneira, fck = 25MPa | F82: m3 | G82: 10 | H82: =OFFSET(INDEX(Composições!A:M,MATCH(E82,Composições!B:B,0),13),2,0) -> 428.38 | I82: 4283.8 | J82: =BDI!$B$17 -> 0.2033593242 | K82: 515.5 | L82: 5155 | M82: Sinapi 92873 + Sinapi 94965
B83: SF-00079 | C83: Civil | D83: Estrutural | E83: Escoramento metálico | F83: m2 | G83: 100 | H83: =OFFSET(INDEX(Composições!A:M,MATCH(E83,Composições!B:B,0),13),2,0) -> 18.25 | I83: 1825 | J83: =BDI!$B$17 -> 0.2033593242 | K83: 21.96 | L83: 2196 | M83: Orse 07629 Adaptada
B84: SF-00080 | C84: Civil | D84: Estrutural | E84: Estrutura metálica em aço | F84: kg | G84: 103 | H84: =OFFSET(INDEX(Composições!A:M,MATCH(E84,Composições!B:B,0),13),2,0) -> 13.01 | I84: 1340.03 | J84: =BDI!$B$17 -> 0.2033593242 | K84: 15.66 | L84: 1612.98 | M84: SCO/RJ ET 25.05.0180 (B) Adaptada
B85: SF-00081 | C85: Civil | D85: Estrutural | E85: Forma para estruturas de concreto | F85: m2 | G85: 100 | H85: =OFFSET(INDEX(Composições!A:M,MATCH(E85,Composições!B:B,0),13),2,0) -> 100.55 | I85: 10055 | J85: =BDI!$B$17 -> 0.2033593242 | K85: 121 | L85: 12100 | M85: Sinapi 92451
B86: SF-00082 | C86: Civil | D86: Estrutural | E86: Verga/contraverga/cinta em bloco de concreto canaleta 11,5 x 19 x 39 cm | F86: m | G86: 20 | H86: =OFFSET(INDEX(Composições!A:M,MATCH(E86,Composições!B:B,0),13),2,0) -> 21.39 | I86: 427.8 | J86: =BDI!$B$17 -> 0.2033593242 | K86: 25.74 | L86: 514.8 | M86: Pini 06.103.000505.SER Adaptada
B87: SF-00083 | C87: Civil | D87: Impermeabilização | E87: Impermeabilização de superfície com revestimento bicomponente semi flexível | F87: m2 | G87: 500 | H87: =OFFSET(INDEX(Composições!A:M,MATCH(E87,Composições!B:B,0),13),2,0) -> 25.17 | I87: 12585 | J87: =BDI!$B$17 -> 0.2033593242 | K87: 30.29 | L87: 15145 | M87: Sinapi 98555
B88: SF-00084 | C88: Civil | D88: Vedações | E88: Alvenaria de vedação | F88: m2 | G88: 100 | H88: =OFFSET(INDEX(Composições!A:M,MATCH(E88,Composições!B:B,0),13),2,0) -> 50.33 | I88: 5033 | J88: =BDI!$B$17 -> 0.2033593242 | K88: 60.57 | L88: 6057 | M88: Sinapi 87503
B89: SF-00085 | C89: Civil | D89: Vedações | E89: Fechamento ou shaft em gesso acartonado tipo drywall | F89: m2 | G89: 10 | H89: =OFFSET(INDEX(Composições!A:M,MATCH(E89,Composições!B:B,0),13),2,0) -> 41.51 | I89: 415.1 | J89: =BDI!$B$17 -> 0.2033593242 | K89: 49.95 | L89: 499.5 | M89: Sinapi 96370
B90: SF-00086 | C90: Civil | D90: Vedações | E90: Fixação (encunhamento) de Alvenaria de Vedação | F90: m | G90: 30 | H90: =OFFSET(INDEX(Composições!A:M,MATCH(E90,Composições!B:B,0),13),2,0) -> 15.87 | I90: 476.1 | J90: =BDI!$B$17 -> 0.2033593242 | K90: 19.1 | L90: 573 | M90: Sinapi 93202
B91: SF-00087 | C91: Civil | D91: Vedações | E91: Parede em gesso acartonado (drywall) | F91: m2 | G91: 120 | H91: =OFFSET(INDEX(Composições!A:M,MATCH(E91,Composições!B:B,0),13),2,0) -> 65.37 | I91: 7844.4 | J91: =BDI!$B$17 -> 0.2033593242 | K91: 78.66 | L91: 9439.2 | M91: Sinapi 96358
B92: SF-00088 | C92: Civil | D92: Vedações | E92: Reparos superficiais em painéis de gesso acartonado | F92: m2 | G92: 20 | H92: =OFFSET(INDEX(Composições!A:M,MATCH(E92,Composições!B:B,0),13),2,0) -> 4.59 | I92: 91.8 | J92: =BDI!$B$17 -> 0.2033593242 | K92: 5.52 | L92: 110.4 | M92: Sinapi 96370 Adaptada
B93: SF-00089 | C93: Civil | D93: Vedações | E93: Sóculo h=10 cm | F93: m2 | G93: 20 | H93: =OFFSET(INDEX(Composições!A:M,MATCH(E93,Composições!B:B,0),13),2,0) -> 51.97 | I93: 1039.4 | J93: =BDI!$B$17 -> 0.2033593242 | K93: 62.54 | L93: 1250.8 | M93: Sinapi 87471 + Sinapi 87545
B94: SF-00090 | C94: Civil | D94: Revestimentos | E94: Chapisco colante industrializado em vigas e pilares | F94: m2 | G94: 50 | H94: =OFFSET(INDEX(Composições!A:M,MATCH(E94,Composições!B:B,0),13),2,0) -> 10.74 | I94: 537 | J94: =BDI!$B$17 -> 0.2033593242 | K94: 12.92 | L94: 646 | M94: Sinapi 87872
B95: SF-00091 | C95: Civil | D95: Revestimentos | E95: Chapisco com argamassa traço 1:3 | F95: m2 | G95: 200 | H95: =OFFSET(INDEX(Composições!A:M,MATCH(E95,Composições!B:B,0),13),2,0) -> 2.9 | I95: 580 | J95: =BDI!$B$17 -> 0.2033593242 | K95: 3.49 | L95: 698 | M95: Sinapi 87878
B96: SF-00092 | C96: Civil | D96: Revestimentos | E96: Gesso cola | F96: m2 | G96: 440 | H96: =OFFSET(INDEX(Composições!A:M,MATCH(E96,Composições!B:B,0),13),2,0) -> 11.23 | I96: 4941.2 | J96: =BDI!$B$17 -> 0.2033593242 | K96: 13.51 | L96: 5944.4 | M96: Sinapi 87419 Adaptada
B97: SF-00093 | C97: Civil | D97: Revestimentos | E97: Reboco com argamassa industrializada e=2,0 cm | F97: m2 | G97: 200 | H97: =OFFSET(INDEX(Composições!A:M,MATCH(E97,Composições!B:B,0),13),2,0) -> 25.71 | I97: 5142 | J97: =BDI!$B$17 -> 0.2033593242 | K97: 30.94 | L97: 6188 | M97: Sinapi 87398 + 87531 Adaptada
B98: SF-00094 | C98: Civil | D98: Revestimentos | E98: Regularização com argamassa industrializada e=0,5 cm | F98: m2 | G98: 200 | H98: =OFFSET(INDEX(Composições!A:M,MATCH(E98,Composições!B:B,0),13),2,0) -> 7.92 | I98: 1584 | J98: =BDI!$B$17 -> 0.2033593242 | K98: 9.53 | L98: 1906 | M98: Sinapi 87398 + 87549 Adaptada
B99: SF-00095 | C99: Civil | D99: Revestimentos | E99: Tratamento de trincas superficiais | F99: m | G99: 100 | H99: =OFFSET(INDEX(Composições!A:M,MATCH(E99,Composições!B:B,0),13),2,0) -> 14.44 | I99: 1444 | J99: =BDI!$B$17 -> 0.2033593242 | K99: 17.38 | L99: 1738 | M99: Pini 06.103.000460.SER Adaptada
B100: SF-00096 | C100: Civil | D100: Pinturas | E100: Aplicação de fundo selador base água | F100: m2 | G100: 5400 | H100: =OFFSET(INDEX(Composições!A:M,MATCH(E100,Composições!B:B,0),13),2,0) -> 3.3 | I100: 17820 | J100: =BDI!$B$17 -> 0.2033593242 | K100: 3.97 | L100: 21438 | M100: Sinapi 88414
B101: SF-00097 | C101: Civil | D101: Pinturas | E101: Fundo anticorrosivo e de aderência (base água) | F101: m2 | G101: 400 | H101: =OFFSET(INDEX(Composições!A:M,MATCH(E101,Composições!B:B,0),13),2,0) -> 16.9 | I101: 6760 | J101: =BDI!$B$17 -> 0.2033593242 | K101: 20.34 | L101: 8136 | M101: Sinapi 74064/1 Adaptada
B102: SF-00098 | C102: Civil | D102: Pinturas | E102: Massa acrílica | F102: m2 | G102: 150 | H102: =OFFSET(INDEX(Composições!A:M,MATCH(E102,Composições!B:B,0),13),2,0) -> 13.58 | I102: 2037 | J102: =BDI!$B$17 -> 0.2033593242 | K102: 16.34 | L102: 2451 | M102: Sinapi 96132
B103: SF-00099 | C103: Civil | D103: Pinturas | E103: Massa corrida | F103: m2 | G103: 1000 | H103: =OFFSET(INDEX(Composições!A:M,MATCH(E103,Composições!B:B,0),13),2,0) -> 10.38 | I103: 10380 | J103: =BDI!$B$17 -> 0.2033593242 | K103: 12.49 | L103: 12490 | M103: Sinapi 88497
B104: SF-00100 | C104: Civil | D104: Pinturas | E104: Pintura com tinta látex acrílica Premium (paredes) | F104: m2 | G104: 6000 | H104: =OFFSET(INDEX(Composições!A:M,MATCH(E104,Composições!B:B,0),13),2,0) -> 10.17 | I104: 61020 | J104: =BDI!$B$17 -> 0.2033593242 | K104: 12.24 | L104: 73440 | M104: Sinapi 88489
B105: SF-00101 | C105: Civil | D105: Pinturas | E105: Pintura em verniz sintético | F105: m2 | G105: 300 | H105: =OFFSET(INDEX(Composições!A:M,MATCH(E105,Composições!B:B,0),13),2,0) -> 13.93 | I105: 4179 | J105: =BDI!$B$17 -> 0.2033593242 | K105: 16.76 | L105: 5028 | M105: Sinapi 6082 Adaptada
B106: SF-00102 | C106: Civil | D106: Pinturas | E106: Pintura esmalte acetinado (metais e madeiras) | F106: m2 | G106: 650 | H106: =OFFSET(INDEX(Composições!A:M,MATCH(E106,Composições!B:B,0),13),2,0) -> 21.06 | I106: 13689 | J106: =BDI!$B$17 -> 0.2033593242 | K106: 25.34 | L106: 16471 | M106: Sinapi 73924/2 Adaptada
B107: SF-00103 | C107: Civil | D107: Pinturas | E107: Pintura tinta látex acrílica standard (tetos) | F107: m2 | G107: 3000 | H107: =OFFSET(INDEX(Composições!A:M,MATCH(E107,Composições!B:B,0),13),2,0) -> 11.45 | I107: 34350 | J107: =BDI!$B$17 -> 0.2033593242 | K107: 13.78 | L107: 41340 | M107: Sinapi 88488
B108: SF-00104 | C108: Civil | D108: Pisos, Revestimentos e Pavimentação | E108: Cerâmica para revestimento de superfícies internas ou externas – Linha Administrativa | F108: m2 | G108: 200 | H108: =OFFSET(INDEX(Composições!A:M,MATCH(E108,Composições!B:B,0),13),2,0) -> 67.27 | I108: 13454 | J108: =BDI!$B$17 -> 0.2033593242 | K108: 80.95 | L108: 16190 | M108: Sinapi 87273 Adaptada
B109: SF-00105 | C109: Civil | D109: Pisos, Revestimentos e Pavimentação | E109: Contrapiso em argamassa | F109: m2 | G109: 60 | H109: =OFFSET(INDEX(Composições!A:M,MATCH(E109,Composições!B:B,0),13),2,0) -> 35.38 | I109: 2122.8 | J109: =BDI!$B$17 -> 0.2033593242 | K109: 42.57 | L109: 2554.2 | M109: Sinapi 87642
B110: SF-00106 | C110: Civil | D110: Pisos, Revestimentos e Pavimentação | E110: Contrapiso em argamassa (e=2cm) ou Regularização de contrapiso existente | F110: m2 | G110: 550 | H110: =OFFSET(INDEX(Composições!A:M,MATCH(E110,Composições!B:B,0),13),2,0) -> 24.14 | I110: 13277 | J110: =BDI!$B$17 -> 0.2033593242 | K110: 29.05 | L110: 15977.5 | M110: Sinapi 87622
B111: SF-00107 | C111: Civil | D111: Pisos, Revestimentos e Pavimentação | E111: Granito cinza andorinha para piso | F111: m2 | G111: 1050 | H111: =OFFSET(INDEX(Composições!A:M,MATCH(E111,Composições!B:B,0),13),2,0) -> 157.14 | I111: 164997 | J111: =BDI!$B$17 -> 0.2033593242 | K111: 189.1 | L111: 198555 | M111: Sinapi 98671 Adaptada
B112: SF-00108 | C112: Civil | D112: Pisos, Revestimentos e Pavimentação | E112: Granito Cinza Andorinha para rodapé | F112: m2 | G112: 270 | H112: =OFFSET(INDEX(Composições!A:M,MATCH(E112,Composições!B:B,0),13),2,0) -> 253.74 | I112: 68509.8 | J112: =BDI!$B$17 -> 0.2033593242 | K112: 305.34 | L112: 82441.8 | M112: Sinapi 98671 e Sinapi 98685 Adaptadas
B113: SF-00109 | C113: Civil | D113: Pisos, Revestimentos e Pavimentação | E113: Granito Cinza Andorinha para soleira e peitoril | F113: m2 | G113: 25 | H113: =OFFSET(INDEX(Composições!A:M,MATCH(E113,Composições!B:B,0),13),2,0) -> 212.92 | I113: 5323 | J113: =BDI!$B$17 -> 0.2033593242 | K113: 256.22 | L113: 6405.5 | M113: Sinapi 98671 e Sinapi 98689 Adaptadas
B114: SF-00110 | C114: Civil | D114: Pisos, Revestimentos e Pavimentação | E114: Granito Preto São Gabriel para piso | F114: m2 | G114: 30 | H114: =OFFSET(INDEX(Composições!A:M,MATCH(E114,Composições!B:B,0),13),2,0) -> 220.94 | I114: 6628.2 | J114: =BDI!$B$17 -> 0.2033593242 | K114: 265.87 | L114: 7976.1 | M114: Sinapi 98671 Adaptada
B115: SF-00111 | C115: Civil | D115: Pisos, Revestimentos e Pavimentação | E115: Granito Preto São Gabriel para rodapé | F115: m2 | G115: 3 | H115: =OFFSET(INDEX(Composições!A:M,MATCH(E115,Composições!B:B,0),13),2,0) -> 402.31 | I115: 1206.93 | J115: =BDI!$B$17 -> 0.2033593242 | K115: 484.12 | L115: 1452.36 | M115: Sinapi 98671 e Sinapi 98685 Adaptadas
B116: SF-00112 | C116: Civil | D116: Pisos, Revestimentos e Pavimentação | E116: Granito Preto São Gabriel para soleira e peitoril | F116: m2 | G116: 2 | H116: =OFFSET(INDEX(Composições!A:M,MATCH(E116,Composições!B:B,0),13),2,0) -> 287.92 | I116: 575.84 | J116: =BDI!$B$17 -> 0.2033593242 | K116: 346.47 | L116: 692.94 | M116: Sinapi 98671 e Sinapi 98689 Adaptadas
B117: SF-00113 | C117: Civil | D117: Pisos, Revestimentos e Pavimentação | E117: Instalação de rodapé de madeira reaproveitado | F117: m | G117: 70 | H117: =OFFSET(INDEX(Composições!A:M,MATCH(E117,Composições!B:B,0),13),2,0) -> 5.83 | I117: 408.1 | J117: =BDI!$B$17 -> 0.2033593242 | K117: 7.02 | L117: 491.4 | M117: Sinapi 84162 Adaptada
B118: SF-00114 | C118: Civil | D118: Pisos, Revestimentos e Pavimentação | E118: Mármore Bege Bahia para piso e parede | F118: m2 | G118: 10 | H118: =OFFSET(INDEX(Composições!A:M,MATCH(E118,Composições!B:B,0),13),2,0) -> 217.97 | I118: 2179.7 | J118: =BDI!$B$17 -> 0.2033593242 | K118: 262.3 | L118: 2623 | M118: Sinapi 98671 Adaptada
B119: SF-00115 | C119: Civil | D119: Pisos, Revestimentos e Pavimentação | E119: Mármore Branco Especial para piso e parede | F119: m2 | G119: 40 | H119: =OFFSET(INDEX(Composições!A:M,MATCH(E119,Composições!B:B,0),13),2,0) -> 371.74 | I119: 14869.6 | J119: =BDI!$B$17 -> 0.2033593242 | K119: 447.34 | L119: 17893.6 | M119: Sinapi 98672 Adaptada
B120: SF-00116 | C120: Civil | D120: Pisos, Revestimentos e Pavimentação | E120: Rodapé de madeira | F120: m | G120: 70 | H120: =OFFSET(INDEX(Composições!A:M,MATCH(E120,Composições!B:B,0),13),2,0) -> 15.09 | I120: 1056.3 | J120: =BDI!$B$17 -> 0.2033593242 | K120: 18.16 | L120: 1271.2 | M120: Sinapi 84162
B121: SF-00117 | C121: Civil | D121: Marmores e Granitos | E121: Acabamento abaulado em placas de granito ou mármore reaproveitadas | F121: m | G121: 20 | H121: 20 | I121: 400 | J121: =BDI!$B$17 -> 0.2033593242 | K121: 24.07 | L121: 481.4 | M121: Pesquisa Simples
B122: SF-00118 | C122: Civil | D122: Marmores e Granitos | E122: Acabamento em meia esquadria em placas de granito ou mármore reaproveitadas | F122: m | G122: 20 | H122: 17 | I122: 340 | J122: =BDI!$B$17 -> 0.2033593242 | K122: 20.46 | L122: 409.2 | M122: Pesquisa Simples
B123: SF-00119 | C123: Civil | D123: Marmores e Granitos | E123: Acabamento reto em placas de granito ou mármore reaproveitadas | F123: m | G123: 20 | H123: 10 | I123: 200 | J123: =BDI!$B$17 -> 0.2033593242 | K123: 12.03 | L123: 240.6 | M123: Pesquisa Simples
B124: SF-00120 | C124: Civil | D124: Marmores e Granitos | E124: Corte de peça de granito ou mármore reaproveitada | F124: m | G124: 20 | H124: 15 | I124: 300 | J124: =BDI!$B$17 -> 0.2033593242 | K124: 18.05 | L124: 361 | M124: Pesquisa Simples
B125: SF-00121 | C125: Civil | D125: Marmores e Granitos | E125: Corte em placas de granito ou mármore reaproveitadas, para instalação de cubas | F125: un | G125: 20 | H125: 56.86 | I125: 1137.2 | J125: =BDI!$B$17 -> 0.2033593242 | K125: 68.42 | L125: 1368.4 | M125: Sinapi 38605
B126: SF-00122 | C126: Civil | D126: Marmores e Granitos | E126: Furo em placas de granito ou mármore reaproveitadas, para instalação de torneira ou misturador | F126: un | G126: 20 | H126: 8.52 | I126: 170.4 | J126: =BDI!$B$17 -> 0.2033593242 | K126: 10.25 | L126: 205 | M126: Sinapi 38633
B127: SF-00123 | C127: Civil | D127: Marmores e Granitos | E127: Granito Cinza Andorinha 20mm para rodabancada | F127: m2 | G127: 30 | H127: =OFFSET(INDEX(Composições!A:M,MATCH(E127,Composições!B:B,0),13),2,0) -> 165.34 | I127: 4960.2 | J127: =BDI!$B$17 -> 0.2033593242 | K127: 198.96 | L127: 5968.8 | M127: Sinapi 98671 e Sinapi 98685 Adaptadas
B128: SF-00124 | C128: Civil | D128: Marmores e Granitos | E128: Granito Cinza Andorinha 25mm para bancadas | F128: m2 | G128: 50 | H128: =OFFSET(INDEX(Composições!A:M,MATCH(E128,Composições!B:B,0),13),2,0) -> 209.44 | I128: 10472 | J128: =BDI!$B$17 -> 0.2033593242 | K128: 252.03 | L128: 12601.5 | M128: Orse 10759 Adaptada
B129: SF-00125 | C129: Civil | D129: Marmores e Granitos | E129: Granito Cinza Andorinha 30mm para divisória | F129: m2 | G129: 100 | H129: =OFFSET(INDEX(Composições!A:M,MATCH(E129,Composições!B:B,0),13),2,0) -> 299.73 | I129: 29973 | J129: =BDI!$B$17 -> 0.2033593242 | K129: 360.68 | L129: 36068 | M129: Sinapi 79627
B130: SF-00126 | C130: Civil | D130: Marmores e Granitos | E130: Granito Preto São Gabriel 25mm para bancadas | F130: m2 | G130: 30 | H130: =OFFSET(INDEX(Composições!A:M,MATCH(E130,Composições!B:B,0),13),2,0) -> 359.79 | I130: 10793.7 | J130: =BDI!$B$17 -> 0.2033593242 | K130: 432.96 | L130: 12988.8 | M130: Orse 10759 Adaptada
B131: SF-00127 | C131: Civil | D131: Marmores e Granitos | E131: Granito Preto São Gabriel 20mm para rodabancada | F131: m2 | G131: 8 | H131: =OFFSET(INDEX(Composições!A:M,MATCH(E131,Composições!B:B,0),13),2,0) -> 253.74 | I131: 2029.92 | J131: =BDI!$B$17 -> 0.2033593242 | K131: 305.34 | L131: 2442.72 | M131: Sinapi 98671 e Sinapi 98685 Adaptadas
B132: SF-00128 | C132: Civil | D132: Marmores e Granitos | E132: Instalação de bancada de granito ou mármore reaproveitada | F132: m2 | G132: 30 | H132: =OFFSET(INDEX(Composições!A:M,MATCH(E132,Composições!B:B,0),13),2,0) -> 30.53 | I132: 915.9 | J132: =BDI!$B$17 -> 0.2033593242 | K132: 36.74 | L132: 1102.2 | M132: Orse 10759 Adaptada
B133: SF-00129 | C133: Civil | D133: Marmores e Granitos | E133: Instalação de rodapé reaproveitado, de mármore ou granito | F133: m2 | G133: 2 | H133: =OFFSET(INDEX(Composições!A:M,MATCH(E133,Composições!B:B,0),13),2,0) -> 35.34 | I133: 70.68 | J133: =BDI!$B$17 -> 0.2033593242 | K133: 42.53 | L133: 85.06 | M133: Sinapi 98671 Adaptada
B134: SF-00130 | C134: Civil | D134: Marmores e Granitos | E134: Instalação de soleira ou peitoril, de mármore ou granito, reaproveitados | F134: m2 | G134: 10 | H134: =OFFSET(INDEX(Composições!A:M,MATCH(E134,Composições!B:B,0),13),2,0) -> 35.05 | I134: =IF(ISNUMBER(H134),ROUND(G134*H134,2),"-") -> 350.5 | J134: =BDI!$B$17 -> 0.2033593242 | K134: =IF(ISNUMBER(H134),ROUND(H134*(1+J134),2),0) -> 42.18 | L134: =ROUND(K134*G134,2) -> 421.8 | M134: Sinapi 98689 Adaptada
B135: SF-00131 | C135: Civil | D135: Marmores e Granitos | E135: Mármore Branco Especial 20mm para rodabancada | F135: m2 | G135: 1 | H135: =OFFSET(INDEX(Composições!A:M,MATCH(E135,Composições!B:B,0),13),2,0) -> 342.14 | I135: 342.14 | J135: =BDI!$B$17 -> 0.2033593242 | K135: 411.72 | L135: 411.72 | M135: Sinapi 98685 Adaptada
B136: SF-00132 | C136: Civil | D136: Divisórias | E136: Divisória em gesso acartonado revestido - Painel liso cego - Ed. Anexo I | F136: m2 | G136: 500 | H136: 357.2 | I136: 178600 | J136: =BDI!$B$17 -> 0.2033593242 | K136: 429.84 | L136: 214920 | M136: Pesquisa Simples
B137: SF-00133 | C137: Civil | D137: Divisórias | E137: Divisória em gesso acartonado revestido - Painel liso, painel de vidro e bandeira – ed. Anexo I | F137: m2 | G137: 500 | H137: 726.38 | I137: 363190 | J137: =BDI!$B$17 -> 0.2033593242 | K137: 874.1 | L137: 437050 | M137: Pesquisa Simples
B138: SF-00134 | C138: Civil | D138: Divisórias | E138: Divisória MDF com painel liso cego e bandeira | F138: m2 | G138: 1000 | H138: 535 | I138: 535000 | J138: =BDI!$B$17 -> 0.2033593242 | K138: 643.8 | L138: 643800 | M138: Pesquisa Simples
B139: SF-00135 | C139: Civil | D139: Divisórias | E139: Divisória MDF com painel liso, painel de vidro e bandeira | F139: m2 | G139: 1000 | H139: 705 | I139: 705000 | J139: =BDI!$B$17 -> 0.2033593242 | K139: 848.37 | L139: 848370 | M139: Pesquisa Simples
B140: SF-00136 | C140: Civil | D140: Divisórias | E140: Divisória MDF com painel paginado cego e bandeira - Interlegis | F140: m2 | G140: 200 | H140: 750 | I140: 150000 | J140: =BDI!$B$17 -> 0.2033593242 | K140: 902.52 | L140: 180504 | M140: Pesquisa Simples
B141: SF-00137 | C141: Civil | D141: Divisórias | E141: Divisória MDF com painel paginado, painel de vidro e bandeira - Interlegis | F141: m2 | G141: 200 | H141: 1036 | I141: 207200 | J141: =BDI!$B$17 -> 0.2033593242 | K141: 1246.68 | L141: 249336 | M141: Pesquisa Simples
B142: SF-00138 | C142: Civil | D142: Divisórias | E142: Instalação de divisória reaproveitada | F142: m2 | G142: 700 | H142: =OFFSET(INDEX(Composições!A:M,MATCH(E142,Composições!B:B,0),13),2,0) -> 12.29 | I142: 8603 | J142: =BDI!$B$17 -> 0.2033593242 | K142: 14.79 | L142: 10353 | M142: Pini 06.102.000005.SER Adaptada
B143: SF-00139 | C143: Civil | D143: Forros | E143: Alçapão em forro de gesso acartonado | F143: m2 | G143: 100 | H143: =OFFSET(INDEX(Composições!A:M,MATCH(E143,Composições!B:B,0),13),2,0) -> 98.17 | I143: 9817 | J143: =BDI!$B$17 -> 0.2033593242 | K143: 118.13 | L143: 11813 | M143: Sinapi 74073/1 Adaptada
B144: SF-00140 | C144: Civil | D144: Forros | E144: Forro de PVC em réguas de 100 x 6000mm | F144: m2 | G144: 50 | H144: =OFFSET(INDEX(Composições!A:M,MATCH(E144,Composições!B:B,0),13),2,0) -> 35.7 | I144: 1785 | J144: =BDI!$B$17 -> 0.2033593242 | K144: 42.96 | L144: 2148 | M144: Sinapi 96486 Adaptada
B145: SF-00141 | C145: Civil | D145: Forros | E145: Forro de PVC em réguas de 100 x 6000mm, sem estrutura | F145: m2 | G145: 100 | H145: =OFFSET(INDEX(Composições!A:M,MATCH(E145,Composições!B:B,0),13),2,0) -> 17.36 | I145: 1736 | J145: =BDI!$B$17 -> 0.2033593242 | K145: 20.89 | L145: 2089 | M145: Sinapi 96486 Adaptada
B146: SF-00142 | C146: Civil | D146: Forros | E146: Forro de PVC modular em placas | F146: m2 | G146: 20 | H146: =OFFSET(INDEX(Composições!A:M,MATCH(E146,Composições!B:B,0),13),2,0) -> 69.3 | I146: 1386 | J146: =BDI!$B$17 -> 0.2033593242 | K146: 83.39 | L146: 1667.8 | M146: Orse 05045
B147: SF-00143 | C147: Civil | D147: Forros | E147: Forro em chapas metálicas | F147: m2 | G147: 500 | H147: =OFFSET(INDEX(Composições!A:M,MATCH(E147,Composições!B:B,0),13),2,0) -> 140.47 | I147: 70235 | J147: =BDI!$B$17 -> 0.2033593242 | K147: 169.04 | L147: 84520 | M147: Pini 21.104.000040.SER Adaptada
B148: SF-00144 | C148: Civil | D148: Forros | E148: Forro em gesso acartonado monolítico | F148: m2 | G148: 1000 | H148: =OFFSET(INDEX(Composições!A:M,MATCH(E148,Composições!B:B,0),13),2,0) -> 47.71 | I148: 47710 | J148: =BDI!$B$17 -> 0.2033593242 | K148: 57.41 | L148: 57410 | M148: Sinapi 96114
B149: SF-00145 | C149: Civil | D149: Forros | E149: Forro em gesso acartonado monolítico, sem estrutura | F149: m2 | G149: 2300 | H149: =OFFSET(INDEX(Composições!A:M,MATCH(E149,Composições!B:B,0),13),2,0) -> 34.97 | I149: 80431 | J149: =BDI!$B$17 -> 0.2033593242 | K149: 42.08 | L149: 96784 | M149: Sinapi 96114 Adaptada
B150: SF-00146 | C150: Civil | D150: Forros | E150: Forro mineral modulado | F150: m2 | G150: 300 | H150: =OFFSET(INDEX(Composições!A:M,MATCH(E150,Composições!B:B,0),13),2,0) -> 80.04 | I150: 24012 | J150: =BDI!$B$17 -> 0.2033593242 | K150: 96.32 | L150: 28896 | M150: Sinapi 39513
B151: SF-00147 | C151: Civil | D151: Forros | E151: Forro mineral modulado, sem estrutura | F151: m2 | G151: 100 | H151: =OFFSET(INDEX(Composições!A:M,MATCH(E151,Composições!B:B,0),13),2,0) -> 47.29 | I151: 4729 | J151: =BDI!$B$17 -> 0.2033593242 | K151: 56.91 | L151: 5691 | M151: Pini 21.101.000010.SER Adaptada
B152: SF-00148 | C152: Civil | D152: Forros | E152: Instalação de forro de PVC reaproveitado | F152: m2 | G152: 100 | H152: =OFFSET(INDEX(Composições!A:M,MATCH(E152,Composições!B:B,0),13),2,0) -> 9.37 | I152: 937 | J152: =BDI!$B$17 -> 0.2033593242 | K152: 11.28 | L152: 1128 | M152: Sinapi 72201
B153: SF-00149 | C153: Civil | D153: Forros | E153: Instalação de forro mineral reaproveitado | F153: m2 | G153: 100 | H153: =OFFSET(INDEX(Composições!A:M,MATCH(E153,Composições!B:B,0),13),2,0) -> 36.11 | I153: 3611 | J153: =BDI!$B$17 -> 0.2033593242 | K153: 43.45 | L153: 4345 | M153: Pini 21.101.000010.SER Adaptada
B154: SF-00150 | C154: Civil | D154: Forros | E154: Tabica metálica em forro de gesso acartonado | F154: m | G154: 3300 | H154: =OFFSET(INDEX(Composições!A:M,MATCH(E154,Composições!B:B,0),13),2,0) -> 7.18 | I154: 23694 | J154: =BDI!$B$17 -> 0.2033593242 | K154: 8.64 | L154: 28512 | M154: Sinapi 96121 adaptada
B155: SF-00151 | C155: Civil | D155: Carpete | E155: Instalação de revestimento de piso têxtil (carpete) reaproveitado | F155: m2 | G155: 400 | H155: =OFFSET(INDEX(Composições!A:M,MATCH(E155,Composições!B:B,0),13),2,0) -> 5.13 | I155: 2052 | J155: =BDI!$B$17 -> 0.2033593242 | K155: 6.17 | L155: 2468 | M155: Seinfra C1914 Adaptada
B156: SF-00152 | C156: Civil | D156: Vidro Comum | E156: Baguetes metálicos | F156: m | G156: 400 | H156: =OFFSET(INDEX(Composições!A:M,MATCH(E156,Composições!B:B,0),13),2,0) -> 11.37 | I156: 4548 | J156: =BDI!$B$17 -> 0.2033593242 | K156: 13.68 | L156: 5472 | M156: Senado Federal
B157: SF-00153 | C157: Civil | D157: Vidro Comum | E157: Cordão de massa de vidraceiro | F157: m | G157: 400 | H157: =OFFSET(INDEX(Composições!A:M,MATCH(E157,Composições!B:B,0),13),2,0) -> 11.13 | I157: 4452 | J157: =BDI!$B$17 -> 0.2033593242 | K157: 13.39 | L157: 5356 | M157: Sedop 270629 Adaptada
B158: SF-00154 | C158: Civil | D158: Vidro Comum | E158: Espelho cristal, e=5 mm | F158: m2 | G158: 130 | H158: =OFFSET(INDEX(Composições!A:M,MATCH(E158,Composições!B:B,0),13),2,0) -> 348 | I158: 45240 | J158: =BDI!$B$17 -> 0.2033593242 | K158: 418.77 | L158: 54440.1 | M158: Sinapi 85005 Adaptada
B159: SF-00155 | C159: Civil | D159: Vidro Comum | E159: Instalação de vidro reaproveitado | F159: m2 | G159: 20 | H159: =OFFSET(INDEX(Composições!A:M,MATCH(E159,Composições!B:B,0),13),2,0) -> 20.78 | I159: 415.6 | J159: =BDI!$B$17 -> 0.2033593242 | K159: 25.01 | L159: 500.2 | M159: Sinapi 72117 Adaptada
B160: SF-00156 | C160: Civil | D160: Vidro Comum | E160: Substituição da calafetação com selante | F160: m | G160: 400 | H160: =OFFSET(INDEX(Composições!A:M,MATCH(E160,Composições!B:B,0),13),2,0) -> 12.87 | I160: 5148 | J160: =BDI!$B$17 -> 0.2033593242 | K160: 15.49 | L160: 6196 | M160: Senado Federal
B161: SF-00157 | C161: Civil | D161: Vidro Comum | E161: Vidro liso comum transparente 4mm | F161: m2 | G161: 20 | H161: =OFFSET(INDEX(Composições!A:M,MATCH(E161,Composições!B:B,0),13),2,0) -> 92.77 | I161: 1855.4 | J161: =BDI!$B$17 -> 0.2033593242 | K161: 111.64 | L161: 2232.8 | M161: Sinapi 72117
B162: SF-00158 | C162: Civil | D162: Vidro Comum | E162: Vidro liso comum transparente 6mm | F162: m2 | G162: 60 | H162: =OFFSET(INDEX(Composições!A:M,MATCH(E162,Composições!B:B,0),13),2,0) -> 130.54 | I162: 7832.4 | J162: =BDI!$B$17 -> 0.2033593242 | K162: 157.09 | L162: 9425.4 | M162: Sinapi 84959
B163: SF-00159 | C163: Civil | D163: Vidro Temperado | E163: Instalação de painéis de vidro temperado reaproveitados | F163: m2 | G163: 100 | H163: =OFFSET(INDEX(Composições!A:M,MATCH(E163,Composições!B:B,0),13),2,0) -> 32.91 | I163: 3291 | J163: =BDI!$B$17 -> 0.2033593242 | K163: 39.6 | L163: 3960 | M163: Orse 05041 Adaptada
B164: SF-00160 | C164: Civil | D164: Vidro Temperado | E164: Mola hidráulica de piso | F164: un | G164: 25 | H164: =OFFSET(INDEX(Composições!A:M,MATCH(E164,Composições!B:B,0),13),2,0) -> 763.47 | I164: 19086.75 | J164: =BDI!$B$17 -> 0.2033593242 | K164: 918.73 | L164: 22968.25 | M164: Sinapi 84886 Adaptada
B165: SF-00161 | C165: Civil | D165: Persianas | E165: Instalação de persianas reaproveitadas | F165: m | G165: 1200 | H165: =OFFSET(INDEX(Composições!A:M,MATCH(E165,Composições!B:B,0),13),2,0) -> 5.27 | I165: 6324 | J165: =BDI!$B$17 -> 0.2033593242 | K165: 6.34 | L165: 7608 | M165: Senado Federal
B166: SF-00162 | C166: Civil | D166: Persianas | E166: Persiana vertical em alumínio curvado de 90 m, cor verde claro | F166: m2 | G166: 600 | H166: 225.94 | I166: 135564 | J166: =BDI!$B$17 -> 0.2033593242 | K166: 271.89 | L166: 163134 | M166: Pesquisa Simples
B167: SF-00163 | C167: Civil | D167: Persianas | E167: Persiana vertical em tecido Juta Resinado sem blecaute de 90mm, cor bege | F167: m2 | G167: 300 | H167: 102 | I167: 30600 | J167: =BDI!$B$17 -> 0.2033593242 | K167: 122.74 | L167: 36822 | M167: Pesquisa Simples
B168: SF-00164 | C168: Civil | D168: Persianas | E168: Persiana vertical em tecido sintético sem blecaute de 90mm, cores verde escuro ou branca | F168: m2 | G168: 100 | H168: 74 | I168: 7400 | J168: =BDI!$B$17 -> 0.2033593242 | K168: 89.05 | L168: 8905 | M168: Pesquisa Simples
B169: SF-00165 | C169: Civil | D169: Película | E169: Película jateada | F169: m2 | G169: 80 | H169: 76.82 | I169: 6145.6 | J169: =BDI!$B$17 -> 0.2033593242 | K169: 92.44 | L169: 7395.2 | M169: Pesquisa Simples
B170: SF-00166 | C170: Hidrossanitário | D170: Tubos | E170: Tubo de Ligação Bacia Ajustável Completo | F170: un | G170: 15 | H170: =OFFSET(INDEX(Composições!A:M,MATCH(E170,Composições!B:B,0),13),2,0) -> 61.96 | I170: 929.4 | J170: =BDI!$B$17 -> 0.2033593242 | K170: 74.56 | L170: 1118.4 | M170: Orse 03707 Adaptada
B171: SF-00167 | C171: Hidrossanitário | D171: Tubos | E171: Tubo PVC esgoto ou aguas pluviais predial DN 100mm | F171: m | G171: 215 | H171: =OFFSET(INDEX(Composições!A:M,MATCH(E171,Composições!B:B,0),13),2,0) -> 33.2 | I171: 7138 | J171: =BDI!$B$17 -> 0.2033593242 | K171: 39.95 | L171: 8589.25 | M171: Sinapi 89512
B172: SF-00168 | C172: Hidrossanitário | D172: Tubos | E172: Tubo PVC esgoto ou aguas pluviais predial DN 40mm | F172: m | G172: 80 | H172: =OFFSET(INDEX(Composições!A:M,MATCH(E172,Composições!B:B,0),13),2,0) -> 10.25 | I172: 820 | J172: =BDI!$B$17 -> 0.2033593242 | K172: 12.33 | L172: 986.4 | M172: Sinapi 89508
B173: SF-00169 | C173: Hidrossanitário | D173: Tubos | E173: Tubo PVC esgoto ou aguas pluviais predial DN 50mm | F173: m | G173: 80 | H173: =OFFSET(INDEX(Composições!A:M,MATCH(E173,Composições!B:B,0),13),2,0) -> 14.75 | I173: 1180 | J173: =BDI!$B$17 -> 0.2033593242 | K173: 17.75 | L173: 1420 | M173: Sinapi 89509
B174: SF-00170 | C174: Hidrossanitário | D174: Tubos | E174: Tubo PVC esgoto ou aguas pluviais predial DN 75mm | F174: m | G174: 100 | H174: =OFFSET(INDEX(Composições!A:M,MATCH(E174,Composições!B:B,0),13),2,0) -> 22.24 | I174: 2224 | J174: =BDI!$B$17 -> 0.2033593242 | K174: 26.76 | L174: 2676 | M174: Sinapi 89511
B175: SF-00171 | C175: Hidrossanitário | D175: Tubos | E175: Tubo PVC soldavel agua fria DN 25mm | F175: m | G175: 200 | H175: =OFFSET(INDEX(Composições!A:M,MATCH(E175,Composições!B:B,0),13),2,0) -> 2.42 | I175: 484 | J175: =BDI!$B$17 -> 0.2033593242 | K175: 2.91 | L175: 582 | M175: Sinapi 89446
B176: SF-00172 | C176: Hidrossanitário | D176: Tubos | E176: Tubo PVC soldavel agua fria DN 32mm | F176: m | G176: 100 | H176: =OFFSET(INDEX(Composições!A:M,MATCH(E176,Composições!B:B,0),13),2,0) -> 4.72 | I176: 472 | J176: =BDI!$B$17 -> 0.2033593242 | K176: 5.68 | L176: 568 | M176: Sinapi 89447
B177: SF-00173 | C177: Hidrossanitário | D177: Tubos | E177: Tubo PVC soldavel agua fria DN 40mm | F177: m | G177: 100 | H177: =OFFSET(INDEX(Composições!A:M,MATCH(E177,Composições!B:B,0),13),2,0) -> 6.72 | I177: 672 | J177: =BDI!$B$17 -> 0.2033593242 | K177: 8.09 | L177: 809 | M177: Sinapi 89448
B178: SF-00174 | C178: Hidrossanitário | D178: Tubos | E178: Tubo PVC soldavel agua fria DN 50mm | F178: m | G178: 100 | H178: =OFFSET(INDEX(Composições!A:M,MATCH(E178,Composições!B:B,0),13),2,0) -> 8.32 | I178: 832 | J178: =BDI!$B$17 -> 0.2033593242 | K178: 10.01 | L178: 1001 | M178: Sinapi 89449
B179: SF-00175 | C179: Hidrossanitário | D179: Registros e Válvulas | E179: Base registro gaveta 3/4" | F179: un | G179: 80 | H179: =OFFSET(INDEX(Composições!A:M,MATCH(E179,Composições!B:B,0),13),2,0) -> 44.17 | I179: 3533.6 | J179: =BDI!$B$17 -> 0.2033593242 | K179: 53.15 | L179: 4252 | M179: Sinapi 89987 Adaptada
B180: SF-00176 | C180: Hidrossanitário | D180: Ralos e caixas | E180: Caixa sifonada de PVC DN 150mm | F180: un | G180: 60 | H180: =OFFSET(INDEX(Composições!A:M,MATCH(E180,Composições!B:B,0),13),2,0) -> 52.32 | I180: 3139.2 | J180: =BDI!$B$17 -> 0.2033593242 | K180: 62.96 | L180: 3777.6 | M180: Sinapi 89708
B181: SF-00177 | C181: Hidrossanitário | D181: Ralos e caixas | E181: Caixa sifonada de PVC DN 250mm | F181: un | G181: 60 | H181: =OFFSET(INDEX(Composições!A:M,MATCH(E181,Composições!B:B,0),13),2,0) -> 91.18 | I181: 5470.8 | J181: =BDI!$B$17 -> 0.2033593242 | K181: 109.72 | L181: 6583.2 | M181: Sinapi 89708 Adaptada
B182: SF-00178 | C182: Hidrossanitário | D182: Ralos e caixas | E182: Grelha quadrada para ralo 10x10cm | F182: un | G182: 60 | H182: =OFFSET(INDEX(Composições!A:M,MATCH(E182,Composições!B:B,0),13),2,0) -> 39.36 | I182: 2361.6 | J182: =BDI!$B$17 -> 0.2033593242 | K182: 47.36 | L182: 2841.6 | M182: Orse 09419 Adaptada
B183: SF-00179 | C183: Hidrossanitário | D183: Ralos e caixas | E183: Grelha quadrada para ralo 15x15cm | F183: un | G183: 60 | H183: =OFFSET(INDEX(Composições!A:M,MATCH(E183,Composições!B:B,0),13),2,0) -> 65.17 | I183: 3910.2 | J183: =BDI!$B$17 -> 0.2033593242 | K183: 78.42 | L183: 4705.2 | M183: Orse 09419 Adaptada
B184: SF-00180 | C184: Hidrossanitário | D184: Ralos e caixas | E184: Ralo seco PVC DN 100x40mm | F184: un | G184: 60 | H184: =OFFSET(INDEX(Composições!A:M,MATCH(E184,Composições!B:B,0),13),2,0) -> 8.61 | I184: 516.6 | J184: =BDI!$B$17 -> 0.2033593242 | K184: 10.36 | L184: 621.6 | M184: Sinapi 89710
B185: SF-00181 | C185: Hidrossanitário | D185: Louças | E185: Assento para bacia convencional – Linha Administrativa | F185: un | G185: 60 | H185: =OFFSET(INDEX(Composições!A:M,MATCH(E185,Composições!B:B,0),13),2,0) -> 21.96 | I185: 1317.6 | J185: =BDI!$B$17 -> 0.2033593242 | K185: 26.43 | L185: 1585.8 | M185: Orse 02056 Adaptada
B186: SF-00182 | C186: Hidrossanitário | D186: Louças | E186: Bacia convencional – Linha Administrativa | F186: un | G186: 60 | H186: =OFFSET(INDEX(Composições!A:M,MATCH(E186,Composições!B:B,0),13),2,0) -> 211.54 | I186: 12692.4 | J186: =BDI!$B$17 -> 0.2033593242 | K186: 254.56 | L186: 15273.6 | M186: Sinapi 95469 Adaptada
B187: SF-00183 | C187: Hidrossanitário | D187: Louças | E187: Bacia convencional com saída horizontal | F187: un | G187: 2 | H187: =OFFSET(INDEX(Composições!A:M,MATCH(E187,Composições!B:B,0),13),2,0) -> 226.47 | I187: 452.94 | J187: =BDI!$B$17 -> 0.2033593242 | K187: 272.52 | L187: 545.04 | M187: Sinapi 95469 Adaptada
B188: SF-00184 | C188: Hidrossanitário | D188: Louças | E188: Cuba oval de embutir | F188: un | G188: 60 | H188: =OFFSET(INDEX(Composições!A:M,MATCH(E188,Composições!B:B,0),13),2,0) -> 87.43 | I188: 5245.8 | J188: =BDI!$B$17 -> 0.2033593242 | K188: 105.21 | L188: 6312.6 | M188: Sinapi 86901 Adaptada
B189: SF-00185 | C189: Hidrossanitário | D189: Louças | E189: Cuba retangular em aço inox – Linha Administrativa | F189: un | G189: 20 | H189: =OFFSET(INDEX(Composições!A:M,MATCH(E189,Composições!B:B,0),13),2,0) -> 139.33 | I189: 2786.6 | J189: =BDI!$B$17 -> 0.2033593242 | K189: 167.66 | L189: 3353.2 | M189: Sinapi 86900
B190: SF-00186 | C190: Hidrossanitário | D190: Louças | E190: Cuba semiencaixe quadrada com mesa | F190: un | G190: 10 | H190: =OFFSET(INDEX(Composições!A:M,MATCH(E190,Composições!B:B,0),13),2,0) -> 537.73 | I190: 5377.3 | J190: =BDI!$B$17 -> 0.2033593242 | K190: 647.08 | L190: 6470.8 | M190: Sinapi 86901 Adaptada
B191: SF-00187 | C191: Hidrossanitário | D191: Louças | E191: Instalação de lavatório reaproveitado | F191: un | G191: 60 | H191: =OFFSET(INDEX(Composições!A:M,MATCH(E191,Composições!B:B,0),13),2,0) -> 29.2 | I191: 1752 | J191: =BDI!$B$17 -> 0.2033593242 | K191: 35.14 | L191: 2108.4 | M191: Sinapi 86904 Adaptada
B192: SF-00188 | C192: Hidrossanitário | D192: Louças | E192: Instalação de mictório reaproveitado | F192: un | G192: 60 | H192: =OFFSET(INDEX(Composições!A:M,MATCH(E192,Composições!B:B,0),13),2,0) -> 92.22 | I192: 5533.2 | J192: =BDI!$B$17 -> 0.2033593242 | K192: 110.97 | L192: 6658.2 | M192: Sinapi 74234/1
B193: SF-00189 | C193: Hidrossanitário | D193: Louças | E193: Instalação de vaso sanitário reaproveitado | F193: un | G193: 60 | H193: =OFFSET(INDEX(Composições!A:M,MATCH(E193,Composições!B:B,0),13),2,0) -> 50.72 | I193: 3043.2 | J193: =BDI!$B$17 -> 0.2033593242 | K193: 61.03 | L193: 3661.8 | M193: Sinapi 95471 Adaptada
B194: SF-00190 | C194: Hidrossanitário | D194: Louças | E194: Lavatório suspenso | F194: un | G194: 10 | H194: =OFFSET(INDEX(Composições!A:M,MATCH(E194,Composições!B:B,0),13),2,0) -> 96.08 | I194: 960.8 | J194: =BDI!$B$17 -> 0.2033593242 | K194: 115.62 | L194: 1156.2 | M194: Sinapi 86904
B195: SF-00191 | C195: Hidrossanitário | D195: Louças | E195: Mictório – Linha Administrativa | F195: un | G195: 20 | H195: =OFFSET(INDEX(Composições!A:M,MATCH(E195,Composições!B:B,0),13),2,0) -> 325.2 | I195: 6504 | J195: =BDI!$B$17 -> 0.2033593242 | K195: 391.33 | L195: 7826.6 | M195: Sinapi 74234/1 Adaptada
B196: SF-00192 | C196: Hidrossanitário | D196: Louças | E196: Tanque 38 litros – Linha Administrativa | F196: un | G196: 5 | H196: =OFFSET(INDEX(Composições!A:M,MATCH(E196,Composições!B:B,0),13),2,0) -> 355.97 | I196: 1779.85 | J196: =BDI!$B$17 -> 0.2033593242 | K196: 428.36 | L196: 2141.8 | M196: Sinapi 86874 Adaptada
B197: SF-00193 | C197: Hidrossanitário | D197: Metais | E197: Acabamento para registro GD – Linha Administrativa | F197: un | G197: 40 | H197: =OFFSET(INDEX(Composições!A:M,MATCH(E197,Composições!B:B,0),13),2,0) -> 42.2 | I197: 1688 | J197: =BDI!$B$17 -> 0.2033593242 | K197: 50.78 | L197: 2031.2 | M197: Orse 8436 Adaptada
B198: SF-00194 | C198: Hidrossanitário | D198: Metais | E198: Acabamento para registro PQ – Linha Administrativa | F198: un | G198: 40 | H198: =OFFSET(INDEX(Composições!A:M,MATCH(E198,Composições!B:B,0),13),2,0) -> 33.75 | I198: =IF(ISNUMBER(H198),ROUND(G198*H198,2),"-") -> 1350 | J198: =BDI!$B$17 -> 0.2033593242 | K198: =IF(ISNUMBER(H198),ROUND(H198*(1+J198),2),0) -> 40.61 | L198: =ROUND(K198*G198,2) -> 1624.4 | M198: Orse 8436 Adaptada
B199: SF-00195 | C199: Hidrossanitário | D199: Metais | E199: Ducha higiênica – Linha Administrativa | F199: un | G199: 60 | H199: =OFFSET(INDEX(Composições!A:M,MATCH(E199,Composições!B:B,0),13),2,0) -> 221.83 | I199: 13309.8 | J199: =BDI!$B$17 -> 0.2033593242 | K199: 266.94 | L199: 16016.4 | M199: Pini 26.108.000090.SER Adaptada
B200: SF-00196 | C200: Hidrossanitário | D200: Metais | E200: Instalação de metais e acessórios reaproveitados | F200: un | G200: 200 | H200: =OFFSET(INDEX(Composições!A:M,MATCH(E200,Composições!B:B,0),13),2,0) -> 3.25 | I200: 650 | J200: =BDI!$B$17 -> 0.2033593242 | K200: 3.91 | L200: 782 | M200: Sinapi 95541
... 186 more rows

Sheet Composições
B1: SENADO FEDERAL | C1: Ata de Registro de Preços para Reformas no SF - 2018/2019
B2: SECRETARIA DE INFRAESTRUTURA | C2: COMPOSIÇÕES
B3: SERVIÇO DE ORÇAMENTOS | C3: Outubro de 2018 (data-base: Sinapi ago/2018, Pini ago/2018 e Orse jul/2018)
A5: Item | B5: Discriminação | D5: Especificação do Serviço | E5: Unidade | F5: Coeficiente | G5: Fonte do Coeficiente | H5: Preço | I5: Fonte do Preço | J5: Composição Auxiliar | K5: MAT. | L5: M.O. | M5: TOTAL
A6: SF-00001 | B6: Engenheiro(a) /Arquiteto(a) júnior | C6: =IF(AND(D6<>"",A21=""),C22,IF(D6<>"",A21,"")) ->  | E6: hh | G6: Sinapi 90777
C7: =IF(AND(D7<>"",A22=""),C6,IF(D7<>"",A22,"")) -> 
C8: =IF(AND(D8<>"",A6=""),C7,IF(D8<>"",A6,"")) -> SF-00001 | D8: Engenheiro civil de obra júnior com encargos complementares | E8: h | F8: 1 | G8: Sinapi 90777 | H8: 72.153 | I8: Sinapi 90777 | L8: =ROUND(H8*F8,2) -> 72.15 | M8: =SUM(J8:L8) -> 72.15
A10: SF-00002 | B10: Mestre de obras | E10: hh | G10: Sinapi 90780
C12: SF-00002 | D12: Mestre de obras com encargos complementares | E12: h | F12: 1 | G12: Sinapi 90780 | H12: 21.753 | I12: Sinapi 90780 | L12: =ROUND(H12*F12,2) -> 21.75 | M12: =SUM(J12:L12) -> 21.75
A14: SF-00003 | B14: Planejamento físico-financeiro | E14: un | G14: Senado Federal
C16: SF-00003 | D16: Engenheiro Civil de Obra Pleno | E16: h | F16: 16 | G16: Senado Federal | H16: 82.071 | I16: Sinapi 90778 | L16: =ROUND(H16*F16,2) -> 1313.14 | M16: =SUM(J16:L16) -> 1313.14
A18: SF-00004 | B18: Projetos de segurança do trabalho | E18: un | G18: Senado Federal
C20: SF-00004 | D20: Engenheiro de Segurança do Trabalho | E20: h | F20: 20 | G20: Senado Federal | H20: 82.071 | I20: Sinapi 90778 | L20: =ROUND(H20*F20,2) -> 1641.42 | M20: =SUM(J20:L21) -> 1838.11
C21: SF-00004 | D21: Anotação de Responsabilidade Técnica | E21: un | F21: 1 | G21: Senado Federal | H21: 196.686 | I21: Crea-DF | K21: =ROUND(H21*F21,2) -> 196.69
A23: SF-00005 | B23: Demolição de alvenarias | E23: m3 | G23: Sinapi 97622
C25: SF-00005 | D25: Pedreiro com Encargos Complementares | E25: h | F25: 0.225 | G25: Sinapi 97622 | H25: 18.117 | I25: Sinapi 88309 | L25: =ROUND(H25*F25,2) -> 4.08 | M25: =SUM(J25:L26) -> 34.69
C26: SF-00005 | D26: Servente com Encargos Complementares | E26: h | F26: 2.3248 | G26: Sinapi 97622 | H26: 13.167 | I26: Sinapi 88316 | L26: =ROUND(H26*F26,2) -> 30.61
A28: SF-00006 | B28: Demolição de concreto simples | E28: m3 | G28: Seinfra C1049 Adaptada
C30: SF-00006 | D30: Pedreiro com Encargos Complementares | E30: h | F30: 1.3 | G30: Seinfra C1049 | H30: 18.117 | I30: Sinapi 88309 | L30: =ROUND(H30*F30,2) -> 23.55 | M30: =SUM(J30:L31) -> 194.72
C31: SF-00006 | D31: Servente com Encargos Complementares | E31: h | F31: 13 | G31: Seinfra C1049 | H31: 13.167 | I31: Sinapi 88316 | L31: =ROUND(H31*F31,2) -> 171.17
A33: SF-00007 | B33: Demolição de contrapiso | E33: m2 | G33: SCO/RJ - SC 05.05.0800 Adaptada
C35: SF-00007 | D35: Servente com Encargos Complementares | E35: h | F35: 0.7 | G35: SCO/RJ - SC 05.05.0800 | H35: 13.167 | I35: Sinapi 88316 | L35: =ROUND(H35*F35,2) -> 9.22 | M35: =SUM(J35:L35) -> 9.22
A37: SF-00008 | B37: Demolição de fechamento ou divisória em gesso acartonado | E37: m2 | G37: Sinapi 97638
C39: SF-00008 | D39: Servente com Encargos Complementares | E39: h | F39: 0.1186 | G39: Sinapi 97638 | H39: 13.167 | I39: Sinapi 88316 | L39: =ROUNDUP(H39*F39,2) -> 1.57 | M39: =SUM(J39:L40) -> 4.64
C40: SF-00008 | D40: Servente com Encargos Complementares | E40: h | F40: 0.2329 | G40: Sinapi 97638 | H40: 13.167 | I40: Sinapi 88316 | L40: =ROUND(H40*F40,2) -> 3.07
A42: SF-00009 | B42: Demolição de forro de gesso | E42: m2 | G42: Sinapi 97641
C44: SF-00009 | D44: Gesseiro com encargos complementares | E44: h | F44: 0.0713 | G44: Sinapi 97641 | H44: 18.009 | I44: Sinapi 88269 | L44: =ROUNDUP(H44*F44,2) -> 1.29 | M44: =SUM(J44:L45) -> 3.14
C45: SF-00009 | D45: Servente com Encargos Complementares | E45: h | F45: 0.1401 | G45: Sinapi 97641 | H45: 13.167 | I45: Sinapi 88316 | L45: =ROUNDUP(H45*F45,2) -> 1.85
A47: SF-00010 | B47: Demolição de infraestrutura elétrica (eletrodutos, eletrocalhas, cabos) | E47: m | G47: Sinapi 97661 Adaptada
C49: SF-00010 | D49: Eletricista com encargos complementares | E49: h | F49: =0.0096*5 -> 0.048 | G49: Sinapi 97661 Adaptada | H49: 18.297 | I49: Sinapi 88264 | L49: =ROUND(H49*F49,2) -> 0.88 | M49: =SUM(J49:L50) -> 2.12
C50: SF-00010 | D50: Servente com Encargos Complementares | E50: h | F50: =0.0188*5 -> 0.094 | G50: Sinapi 97661 Adaptada | H50: 13.167 | I50: Sinapi 88316 | L50: =ROUND(H50*F50,2) -> 1.24
A52: SF-00011 | B52: Demolição de revestimento cerâmico, granito, mármore ou granitina | E52: m2 | G52: Sinapi 97634
C54: SF-00011 | D54: Martelete ou rompedor pneumático manual, 28 kg, com silenciador - CHP diurno. AF_07/2016 | E54: chp | F54: 0.0699 | G54: Sinapi 97634 | H54: =OFFSET(INDEX('Composições Auxiliares'!A:L,MATCH(D54,'Composições Auxiliares'!A:A,0),12),2,0) -> 16.42 | I54: Sinapi 5795 | J54: =ROUNDDOWN(H54*F54,2) -> 1.14 | M54: =SUM(J54:L57) -> 7.72
C55: SF-00011 | D55: Martelete ou rompedor pneumático manual, 28 kg, com silenciador - CHI diurno. AF_07/2016 | E55: chi | F55: 0.0482 | G55: Sinapi 97634 | H55: =OFFSET(INDEX('Composições Auxiliares'!A:L,MATCH(D55,'Composições Auxiliares'!A:A,0),12),2,0) -> 15.46 | I55: Sinapi 5952 | J55: =ROUND(H55*F55,2) -> 0.75
C56: SF-00011 | D56: Azulejista ou ladrilhista com encargos complementares | E56: h | F56: 0.1055 | G56: Sinapi 97634 | H56: 18.045 | I56: Sinapi 88256 | L56: =ROUNDUP(H56*F56,2) -> 1.91
C57: SF-00011 | D57: Servente com Encargos Complementares | E57: h | F57: 0.2972 | G57: Sinapi 97634 | H57: 13.167 | I57: Sinapi 88316 | L57: =ROUNDUP(H57*F57,2) -> 3.92
A59: SF-00012 | B59: Demolição de revestimento em argamassa | E59: m2 | G59: Sinapi 97631
C61: SF-00012 | D61: Pedreiro com Encargos Complementares | E61: h | F61: 0.0374 | G61: Sinapi 97631 | H61: 18.117 | I61: Sinapi 88309 | L61: =ROUND(H61*F61,2) -> 0.68 | M61: =SUM(J61:L62) -> 2.07
C62: SF-00012 | D62: Servente com Encargos Complementares | E62: h | F62: 0.1053 | G62: Sinapi 97631 | H62: 13.167 | I62: Sinapi 88316 | L62: =ROUND(H62*F62,2) -> 1.39
A64: SF-00013 | B64: Demolição de tubulação hidrossanitária embutida com conexões e acessórios | E64: m | G64: Sinapi 97662
C66: SF-00013 | D66: Encanador ou Bombeiro Hidráulico com Encargos Complementares | E66: h | F66: 0.0071 | G66: Sinapi 97662 | H66: 18.081 | I66: Sinapi 88267 | L66: =ROUND(H66*F66,2) -> 0.13 | M66: =SUM(J66:L67) -> 0.31
C67: SF-00013 | D67: Servente com Encargos Complementares | E67: h | F67: 0.014 | G67: Sinapi 97662 | H67: 13.167 | I67: Sinapi 88316 | L67: =ROUND(H67*F67,2) -> 0.18
A69: SF-00014 | B69: Demolição em concreto armado | E69: m3 | G69: Sinapi 97627
C71: SF-00014 | D71: Martelete ou rompedor pneumático manual, 28 kg, com silenciador - CHP diurno. AF_07/2016 | E71: chp | F71: 3.2468 | G71: Sinapi 97627 | H71: =OFFSET(INDEX('Composições Auxiliares'!A:L,MATCH(D71,'Composições Auxiliares'!A:A,0),12),2,0) -> 16.42 | I71: Sinapi 5795 | J71: =ROUNDDOWN(H71*F71,2) -> 53.31 | M71: =SUM(J71:L75) -> 167.94
C72: =IF(AND(D72<>"",A70=""),C71,IF(D72<>"",A70,"")) -> SF-00014 | D72: Martelete ou rompedor pneumático manual, 28 kg, com silenciador - CHI diurno. AF_07/2016 | E72: chi | F72: 0.9202 | G72: Sinapi 97627 | H72: =OFFSET(INDEX('Composições Auxiliares'!A:L,MATCH(D72,'Composições Auxiliares'!A:A,0),12),2,0) -> 15.46 | I72: Sinapi 5952 | J72: =ROUNDDOWN(H72*F72,2) -> 14.22
C73: SF-00014 | D73: Cabo de aco galvanizado, diametro 9,53 mm (3/8"), com alma de fibra 6 x 25 f (coletado caixa) | E73: kg | F73: 0.2835 | G73: Sinapi 97627 | H73: 7.965 | I73: Sinapi 42655 | K73: =ROUND(H73*F73,2) -> 2.26
C74: SF-00014 | D74: Pedreiro com Encargos Complementares | E74: h | F74: 0.6366 | G74: Sinapi 97627 | H74: 18.117 | I74: Sinapi 88309 | L74: =ROUND(H74*F74,2) -> 11.53
C75: SF-00014 | D75: Servente com Encargos Complementares | E75: h | F75: 6.5785 | G75: Sinapi 97627 | H75: 13.167 | I75: Sinapi 88316 | L75: 86.62
A77: SF-00016 | B77: Remoção de armários | E77: m2 | G77: SCO/RJ - SC 05.05.1750 Adaptada
C79: SF-00016 | D79: Carpinteiro de esquadria com encargos complementares | E79: h | F79: 0.35 | G79: SCO/RJ - SC 05.05.1750 | H79: 18.045 | I79: Sinapi 88261 | L79: =ROUND(H79*F79,2) -> 6.32 | M79: =SUM(J79:L80) -> 10.93
C80: SF-00016 | D80: Servente com Encargos Complementares | E80: h | F80: 0.35 | G80: SCO/RJ - SC 05.05.1750 | H80: 13.167 | I80: Sinapi 88316 | L80: =ROUND(H80*F80,2) -> 4.61
A82: SF-00017 | B82: Remoção de bancadas | E82: m2 | G82: Orse 8387 Adaptada
C84: SF-00017 | D84: Pedreiro com Encargos Complementares | E84: h | F84: 0.15 | G84: Orse 8387 | H84: 18.117 | I84: Sinapi 88309 | L84: =ROUND(H84*F84,2) -> 2.72 | M84: =SUM(J84:L85) -> 15.89
C85: SF-00017 | D85: Servente com Encargos Complementares | E85: h | F85: 1 | G85: Orse 8387 | H85: 13.167 | I85: Sinapi 88316 | L85: =ROUND(H85*F85,2) -> 13.17
A87: SF-00018 | B87: Remoção de batentes de madeira | E87: un | G87: Sinapi 97644 Adaptada
C89: SF-00018 | D89: Pedreiro com Encargos Complementares | E89: h | F89: =0.1315*0.7 -> 0.09205 | G89: Sinapi 97644 Adaptada | H89: 18.117 | I89: Sinapi 88309 | L89: =ROUND(H89*F89,2) -> 1.67 | M89: =SUM(J89:L90) -> 4.05
C90: SF-00018 | D90: Servente com Encargos Complementares | E90: h | F90: =0.2582*0.7 -> 0.18074 | G90: Sinapi 97644 Adaptada | H90: 13.167 | I90: Sinapi 88316 | L90: =ROUND(H90*F90,2) -> 2.38
A92: SF-00019 | B92: Remoção de canaleta em alumínio | E92: m | G92: Orse 010276 Adaptada
C94: SF-00019 | D94: Eletricista com encargos complementares | E94: h | F94: =0.75*0.1 -> 0.075 | G94: Orse 010276 Adaptada | H94: 18.297 | I94: Sinapi 88264 | L94: =ROUND(H94*F94,2) -> 1.37 | M94: =SUM(J94:L95) -> 3.34
C95: SF-00019 | D95: Servente com Encargos Complementares | E95: h | F95: =0.75*0.2 -> 0.15 | G95: Orse 010276 Adaptada | H95: 13.167 | I95: Sinapi 88316 | L95: =ROUNDDOWN(H95*F95,2) -> 1.97
A97: SF-00020 | B97: Remoção de carpete | E97: m2 | G97: Pini 02.102.000043.SER Adaptada
C99: SF-00020 | D99: Pedreiro com Encargos Complementares | E99: h | F99: 0.01 | G99: Pini 02.102.000043.SER | H99: 18.117 | I99: Sinapi 88309 | L99: =ROUND(H99*F99,2) -> 0.18 | M99: =SUM(J99:L100) -> 1.49
C100: SF-00020 | D100: Servente com Encargos Complementares | E100: h | F100: 0.1 | G100: Pini 02.102.000043.SER | H100: 13.167 | I100: Sinapi 88316 | L100: =ROUNDDOWN(H100*F100,2) -> 1.31
A102: SF-00021 | B102: Remoção de cortinas | E102: m | G102: SBC 022086
C104: SF-00021 | D104: Ajudante especializado com encargos complementares | E104: h | F104: 0.17 | G104: SBC 022086 | H104: 15.795 | I104: Sinapi 88243 | L104: =ROUNDDOWN(H104*F104,2) -> 2.68 | M104: =SUM(J104:L104) -> 2.68
A106: SF-00022 | B106: Remoção de difusores, grelhas e acessórios de climatização | E106: un | G106: Orse 08857 Adaptada
C108: SF-00022 | D108: Ajudante de operação em geral com encargos complementares | E108: h | F108: 0.6 | G108: Orse 08857 | H108: 14.103 | I108: Sinapi 88241 | L108: =ROUND(H108*F108,2) -> 8.46 | M108: =SUM(J108:L109) -> 16.36
C109: SF-00022 | D109: Servente com Encargos Complementares | E109: h | F109: 0.6 | G109: Orse 08857 | H109: 13.167 | I109: Sinapi 88316 | L109: =ROUND(H109*F109,2) -> 7.9
A111: SF-00023 | B111: Remoção de divisória de mármore ou granito | E111: m2 | G111: Seinfra C1051 Adaptada
C113: SF-00023 | D113: Marmorista/graniteiro com encargos complementares | E113: h | F113: 0.6 | G113: Seinfra C1051 | H113: 14.949 | I113: Sinapi 88274 | L113: =ROUND(H113*F113,2) -> 8.97 | M113: =SUM(J113:L114) -> 24.77
C114: SF-00023 | D114: Servente com Encargos Complementares | E114: h | F114: 1.2 | G114: Seinfra C1051 | H114: 13.167 | I114: Sinapi 88316 | L114: =ROUND(H114*F114,2) -> 15.8
A116: SF-00024 | B116: Remoção de divisórias de MDF e gesso acartonado | E116: m2 | G116: Sinapi 72178
C118: SF-00024 | D118: Carpinteiro de esquadria com encargos complementares | E118: h | F118: 1.2 | G118: Sinapi 72178 | H118: 18.045 | I118: Sinapi 88261 | L118: =ROUND(H118*F118,2) -> 21.65 | M118: =SUM(J118:L118) -> 21.65
A120: SF-00025 | B120: Remoção de dutos/tubulações | E120: m | G120: Seinfra C3389 Adaptada
C122: SF-00025 | D122: Encanador ou Bombeiro Hidráulico com Encargos Complementares | E122: h | F122: 0.175 | G122: Seinfra C3389 | H122: 18.081 | I122: Sinapi 88267 | L122: =ROUNDUP(H122*F122,2) -> 3.17 | M122: =SUM(J122:L123) -> 7.12
C123: SF-00025 | D123: Servente com Encargos Complementares | E123: h | F123: 0.3 | G123: Seinfra C3389 | H123: 13.167 | I123: Sinapi 88316 | L123: =ROUND(H123*F123,2) -> 3.95
A125: SF-00026 | B125: Remoção de esquadrias metálicas | E125: m2 | G125: Pini 02.102.000031.SER Adaptada
C127: SF-00026 | D127: Pedreiro com Encargos Complementares | E127: h | F127: 0.05 | G127: Pini 02.102.000031.SER | H127: 18.117 | I127: Sinapi 88309 | L127: =ROUND(H127*F127,2) -> 0.91 | M127: =SUM(J127:L128) -> 7.5
C128: SF-00026 | D128: Servente com Encargos Complementares | E128: h | F128: 0.5 | G128: Pini 02.102.000031.SER | H128: 13.167 | I128: Sinapi 88316 | L128: =ROUNDUP(H128*F128,2) -> 6.59
A130: SF-00027 | B130: Remoção de exaustor | E130: un | G130: Orse 11102 Adaptada
C132: SF-00027 | D132: Pedreiro com Encargos Complementares | E132: h | F132: 0.5 | G132: Orse 11102 Adaptada | H132: 18.117 | I132: Sinapi 88309 | L132: =ROUND(H132*F132,2) -> 9.06 | M132: =SUM(J132:L133) -> 15.65
C133: SF-00027 | D133: Servente com Encargos Complementares | E133: h | F133: 0.5 | G133: Orse 11102 Adaptada | H133: 13.167 | I133: Sinapi 88316 | L133: =ROUNDUP(H133*F133,2) -> 6.59
A135: SF-00028 | B135: Remoção de ferragens de porta | E135: un | G135: Orse 04859 Adaptada
C136: =IF(AND(D136<>"",A134=""),C135,IF(D136<>"",A134,"")) -> 
C137: SF-00028 | D137: Carpinteiro de esquadria com encargos complementares | E137: h | F137: =0.25 -> 0.25 | G137: Orse 04859 | H137: 18.045 | I137: Sinapi 88261 | L137: =ROUND(H137*F137,2) -> 4.51 | M137: =SUM(J137:L137) -> 4.51
A139: SF-00029 | B139: Remoção de folha de porta | E139: un | G139: Sinapi 97644
C141: SF-00029 | D141: Pedreiro com Encargos Complementares | E141: h | F141: 0.1315 | G141: Sinapi 97644 | H141: 18.117 | I141: Sinapi 88309 | L141: =ROUNDUP(H141*F141,2) -> 2.39 | M141: =SUM(J141:L142) -> 5.79
C142: SF-00029 | D142: Servente com Encargos Complementares | E142: h | F142: 0.2582 | G142: Sinapi 97644 | H142: 13.167 | I142: Sinapi 88316 | L142: =ROUND(H142*F142,2) -> 3.4
A144: SF-00030 | B144: Remoção de laminado melamínico (LDAP), em PVC ou vinílico | E144: m2 | G144: Pini 02.102.000044.SER Adaptada
C146: SF-00030 | D146: Pedreiro com Encargos Complementares | E146: h | F146: 0.09 | G146: Pini 02.102.000044.SER | H146: 18.117 | I146: Sinapi 88309 | L146: =ROUND(H146*F146,2) -> 1.63 | M146: =SUM(J146:L147) -> 13.48
C147: SF-00030 | D147: Servente com Encargos Complementares | E147: h | F147: 0.9 | G147: Pini 02.102.000044.SER | H147: 13.167 | I147: Sinapi 88316 | L147: =ROUND(H147*F147,2) -> 11.85
A149: SF-00031 | B149: Remoção de louças | E149: un | G149: Sinapi 97663
C151: SF-00031 | D151: Encanador ou Bombeiro Hidráulico com Encargos Complementares | E151: h | F151: 0.1755 | G151: Sinapi 97663 | H151: 18.081 | I151: Sinapi 88267 | L151: =ROUNDUP(H151*F151,2) -> 3.18 | M151: =SUM(J151:L152) -> 7.72
C152: SF-00031 | D152: Servente com Encargos Complementares | E152: h | F152: 0.3448 | G152: Sinapi 97663 | H152: 13.167 | I152: Sinapi 88316 | L152: =ROUND(H152*F152,2) -> 4.54
A154: SF-00032 | B154: Remoção de luminária | E154: un | G154: Sinapi 97665 Adaptada
C156: SF-00032 | D156: Eletricista com encargos complementares | E156: h | F156: =0.0183*5 -> 0.0915 | G156: Sinapi 97665 Adaptada | H156: 18.297 | I156: Sinapi 88264 | L156: =ROUND(H156*F156,2) -> 1.67 | M156: =SUM(J156:L157) -> 4.04
C157: SF-00032 | D157: Servente com Encargos Complementares | E157: h | F157: =0.0359*5 -> 0.1795 | G157: Sinapi 97665 Adaptada | H157: 13.167 | I157: Sinapi 88316 | L157: =ROUNDUP(H157*F157,2) -> 2.37
D159: Obs. Remoção com reaproveitamento
A161: SF-00033 | B161: Remoção de metais e acessórios | E161: un | G161: Sinapi 97666
C163: SF-00033 | D163: Encanador ou Bombeiro Hidráulico com Encargos Complementares | E163: h | F163: 0.128 | G163: Sinapi 97666 | H163: 18.081 | I163: Sinapi 88267 | L163: =ROUND(H163*F163,2) -> 2.31 | M163: =SUM(J163:L164) -> 5.62
C164: SF-00033 | D164: Servente com Encargos Complementares | E164: h | F164: 0.2514 | G164: Sinapi 97666 | H164: 13.167 | I164: Sinapi 88316 | L164: =ROUND(H164*F164,2) -> 3.31
A166: SF-00034 | B166: Remoção de painéis de vidro temperado | E166: m2 | G166: Orse 4715 Adaptada
C168: SF-00034 | D168: Servente com Encargos Complementares | E168: h | F168: 0.35 | G168: Orse 4715 | H168: 13.167 | I168: Sinapi 88316 | L168: =ROUND(H168*F168,2) -> 4.61 | M168: =SUM(J168:L169) -> 10.96
C169: SF-00034 | D169: Pedreiro com Encargos Complementares | E169: h | F169: 0.35 | G169: Orse 4715 | H169: 18.117 | I169: Sinapi 88309 | L169: =ROUNDUP(H169*F169,2) -> 6.35
A171: SF-00036 | B171: Remoção de persianas | E171: m | G171: Senado Federal
C173: SF-00036 | D173: Ajudante especializado com encargos complementares | E173: h | F173: =1/6 -> 0.1666666667 | G173: Senado Federal | H173: 15.795 | I173: Sinapi 88243 | L173: =ROUNDUP(H173*F173,2) -> 2.64 | M173: =SUM(J173:L173) -> 2.64
A175: SF-00037 | B175: Remoção de pintura ou textura | E175: m2 | G175: Orse 7725 Adaptada
C177: SF-00037 | D177: Servente com Encargos Complementares | E177: h | F177: 0.4 | G177: Orse 7725 | H177: 13.167 | I177: Sinapi 88316 | L177: =ROUND(H177*F177,2) -> 5.27 | M177: =SUM(J177:L177) -> 5.27
A179: SF-00038 | B179: Remoção de placas de forro | E179: m2 | G179: Sinapi 97640 Adaptada
C181: SF-00038 | D181: Montador de estrutura metálica com encargos complementares | E181: h | F181: =0.0258*3 -> 0.0774 | G181: Sinapi 97640 Adaptada | H181: 14.301 | I181: Sinapi 88278 | L181: =ROUND(H181*F181,2) -> 1.11 | M181: =SUM(J181:L182) -> 3.12
C182: SF-00038 | D182: Servente com Encargos Complementares | E182: h | F182: =0.0507*3 -> 0.1521 | G182: Sinapi 97640 Adaptada | H182: 13.167 | I182: Sinapi 88316 | L182: =ROUNDUP(H182*F182,2) -> 2.01
D184: Obs: remoção com reaproveitamento
A186: SF-00039 | B186: Remoção de quadros de elétricos ou de telecomunicações | E186: un | G186: Senado Federal
C188: SF-00039 | D188: Auxiliar de eletricista com encargos complementares | E188: h | F188: 0.5 | G188: Senado Federal | H188: 14.049 | I188: Sinapi 88247 | L188: =ROUNDUP(H188*F188,2) -> 7.03 | M188: =SUM(J188:L191) -> 47.47
C189: SF-00039 | D189: Eletricista com encargos complementares | E189: h | F189: 0.5 | G189: Senado Federal | H189: 18.297 | I189: Sinapi 88264 | L189: =ROUND(H189*F189,2) -> 9.15
C190: SF-00039 | D190: Pedreiro com Encargos Complementares | E190: h | F190: 1 | G190: Orse 07224 | H190: 18.117 | I190: Sinapi 88309 | L190: =ROUND(H190*F190,2) -> 18.12
C191: SF-00039 | D191: Servente com Encargos Complementares | E191: h | F191: 1 | G191: Orse 07224 | H191: 13.167 | I191: Sinapi 88316 | L191: =ROUND(H191*F191,2) -> 13.17
A193: SF-00040 | B193: Remoção de revestimento acústico | E193: m2 | G193: Senado Federal
C195: SF-00040 | D195: Servente com Encargos Complementares | E195: h | F195: 0.2 | G195: Senado Federal | H195: 13.167 | I195: Sinapi 88316 | L195: =ROUNDUP(H195*F195,2) -> 2.64 | M195: =SUM(J195:L195) -> 2.64
C196: =IF(AND(D196<>"",A194=""),C195,IF(D196<>"",A194,"")) -> 
A197: SF-00041 | B197: Remoção de rodapé de mármore ou granito | E197: m | G197: Orse 4858 Adaptada
C199: SF-00041 | D199: Servente com Encargos Complementares | E199: h | F199: 0.437 | G199: Orse 4858 | H199: 13.167 | I199: Sinapi 88316 | L199: =ROUND(H199*F199,2) -> 5.75 | M199: =SUM(J199:L199) -> 5.75
A201: SF-00042 | B201: Remoção de rodapés de madeira | E201: m2 | G201: Orse 10235 Adaptada
C203: SF-00042 | D203: Carpinteiro de formas com encargos complementares | E203: h | F203: 0.25 | G203: Orse 10235 | H203: 18.009 | I203: Sinapi 88262 | L203: =ROUND(H203*F203,2) -> 4.5 | M203: =SUM(J203:L204) -> 4.83
C204: SF-00042 | D204: Servente com Encargos Complementares | E204: h | F204: 0.025 | G204: Orse 10235 | H204: 13.167 | I204: Sinapi 88316 | L204: =ROUND(H204*F204,2) -> 0.33
A206: SF-00043 | B206: Remoção de soleira de mármore ou granito | E206: m | G206: Pini 02.102.000042.SER Adaptada
C208: SF-00043 | D208: Servente com Encargos Complementares | E208: h | F208: 0.55 | G208: Pini 02.102.000042.SER | H208: 13.167 | I208: Sinapi 88316 | L208: =ROUNDUP(H208*F208,2) -> 7.25 | M208: =SUM(J208:L208) -> 7.25
A210: SF-00044 | B210: Remoção de split/fancolete (equipamento unitário) | E210: un | G210: Senado Federal
C212: SF-00044 | D212: Montador eletromecânico com encargos complementares | E212: h | F212: 1 | G212: Senado Federal | H212: 18.972 | I212: Sinapi 88279 | L212: =ROUND(H212*F212,2) -> 18.97 | M212: =SUM(J212:L213) -> 33.07
C213: SF-00044 | D213: Ajudante de operação em geral com encargos complementares | E213: h | F213: 1 | G213: Senado Federal | H213: 14.103 | I213: Sinapi 88241 | L213: =ROUND(H213*F213,2) -> 14.1
A215: SF-00045 | B215: Remoção de vidro comum | E215: m2 | G215: Sinapi 85421
C217: SF-00045 | D217: Servente com Encargos Complementares | E217: h | F217: 0.2 | G217: Sinapi 85421 | H217: 13.167 | I217: Sinapi 88316 | L217: =ROUNDUP(H217*F217,2) -> 2.64 | M217: =SUM(J217:L218) -> 11.02
C218: SF-00045 | D218: Vidraceiro com encargos complementares | E218: h | F218: 0.5 | G218: Sinapi 85421 | H218: 16.758 | I218: Sinapi 88325 | L218: =ROUND(H218*F218,2) -> 8.38
A220: SF-00046 | B220: Retirada de entulhos | E220: m3 | G220: Orse 0026 Adaptada
C222: SF-00046 | D222: Servente com Encargos Complementares | E222: h | F222: 1 | G222: Orse 0026 | H222: 13.167 | I222: Sinapi 88316 | L222: =ROUND(H222*F222,2) -> 13.17 | M222: =SUM(J222:L222) -> 13.17
A224: SF-00057 | B224: Isolamento de obra com tela plástica com malha de 5mm e estrutura de madeira pontaleteada | E224: m2 | G224: Sinapi 85424
C226: SF-00057 | D226: Ajudante de carpinteiro com encargos complementares | E226: h | F226: 0.53 | G226: Sinapi 85424 | H226: 15.066 | I226: Sinapi 88239 | L226: =ROUND(H226*F226,2) -> 7.98 | M226: =SUM(J226:L231) -> 19.05
C227: SF-00057 | D227: Carpinteiro de formas com encargos complementares | E227: h | F227: 0.44 | G227: Sinapi 85424 | H227: 18.009 | I227: Sinapi 88262 | L227: =ROUND(H227*F227,2) -> 7.92
C228: SF-00057 | D228: Peca de madeira nativa / regional 7,5 x 7,5cm (3x3) nao aparelhada (p/forma) | E228: m | F228: 0.06 | G228: Sinapi 85424 | H228: 4.68 | I228: Sinapi 4491 | K228: =ROUND(H228*F228,2) -> 0.28
C229: SF-00057 | D229: Peca de madeira 3a qualidade 2,5 x 10cm nao aparelhada | E229: m | F229: 0.2 | G229: Sinapi 85424 | H229: 2.403 | I229: Sinapi 4509 | K229: =ROUND(H229*F229,2) -> 0.48
C230: SF-00057 | D230: Prego de aco polido com cabeca 18 x 27 (2 1/2 x 10) | E230: kg | F230: 0.01 | G230: Sinapi 85424 | H230: 9.315 | I230: Sinapi 5061 | K230: =ROUND(H230*F230,2) -> 0.09
C231: SF-00057 | D231: Tela fachadeira em polietileno, rolo de 3 x 100 m (L x C), cor branca, sem logomarca - para protecao de obras | E231: m2 | F231: 1.1 | G231: Sinapi 85424 | H231: 2.097 | I231: Sinapi 7170 | K231: =ROUNDDOWN(H231*F231,2) -> 2.3
A233: SF-00070 | B233: Tapume | E233: m2 | G233: Sinapi 74220/1
C235: SF-00070 | D235: Carpinteiro de formas com encargos complementares | E235: h | F235: 0.8 | G235: Sinapi 74220/1 | H235: 18.009 | I235: Sinapi 88262 | L235: =ROUND(H235*F235,2) -> 14.41 | M235: =SUM(J235:L242) -> 48.78
C236: SF-00070 | D236: Pintor com encargos complementares | E236: h | F236: 0.3 | G236: Sinapi 74220/1 | H236: 18.045 | I236: Sinapi 88310 | L236: =ROUNDUP(H236*F236,2) -> 5.42
C237: SF-00070 | D237: Servente com Encargos Complementares | E237: h | F237: 0.95 | G237: Sinapi 74220/1 | H237: 13.167 | I237: Sinapi 88316 | L237: =ROUND(H237*F237,2) -> 12.51
C238: SF-00070 | D238: Cal hidratada CH-I para argamassas | E238: kg | F238: 0.6 | G238: Sinapi 74220/1 | H238: 4.545 | I238: Sinapi 1106 | K238: =ROUND(H238*F238,2) -> 2.73
C239: SF-00070 | D239: Chapa de madeira compensada resinada para forma de concreto, de *2,2 x 1,1* m, E = 6 mm | E239: un | F239: 0.2272727 | G239: Sinapi 74220/1 | H239: 20.349 | I239: Sinapi 1351 | K239: =ROUNDUP(H239*F239,2) -> 4.63
C240: SF-00070 | D240: Peca de madeira nativa / regional 7,5 x 7,5cm (3x3) nao aparelhada (p/forma) | E240: m | F240: 1.58 | G240: Sinapi 74220/1 | H240: 4.68 | I240: Sinapi 4491 | K240: =ROUNDUP(H240*F240,2) -> 7.4
C241: SF-00070 | D241: Prego de aco polido com cabeca 18 x 27 (2 1/2 x 10) | E241: kg | F241: 0.15 | G241: Sinapi 74220/1 | H241: 9.315 | I241: Sinapi 5061 | K241: =ROUND(H241*F241,2) -> 1.4
C242: SF-00070 | D242: Óleo de linhaça | E242: l | F242: 0.022 | G242: Sinapi 74220/1 | H242: 12.609 | I242: Sinapi 5333 | K242: =ROUND(H242*F242,2) -> 0.28
A244: SF-00073 | B244: Limpeza final de obra | E244: m2 | G244: ORSE 02450 Adaptada
C246: SF-00073 | D246: Servente com Encargos Complementares | E246: h | F246: 0.1 | G246: ORSE 02450 | H246: 13.167 | I246: Sinapi 88316 | L246: =ROUNDDOWN(+F246*H246,2) -> 1.31 | M246: =SUM(J246:L248) -> 1.82
C247: SF-00073 | D247: Sabão em pó | E247: m | F247: 0.005 | G247: ORSE 02450 | H247: 7.083 | I247: Sinapi 00016 | K247: =ROUND(H247*F247,2) -> 0.04
C248: SF-00073 | D248: Vassoura | E248: un | F248: 0.05 | G248: ORSE 02450 | H248: 9.432 | I248: Sinapi 38400 | K248: =ROUND(H248*F248,2) -> 0.47
A250: SF-00074 | B250: Abertura/fechamento rasgo em alvenaria | E250: m | G250: Sinapi 90447 + Sinapi 90466
C252: SF-00074 | D252: Auxiliar de eletricista com encargos complementares | E252: h | F252: 0.034 | G252: Sinapi 90447 | H252: 14.049 | I252: Sinapi 88247 | L252: =ROUND(H252*F252,2) -> 0.48 | M252: =SUM(J252:L256) -> 13.37
C253: SF-00074 | D253: Eletricista com encargos complementares | E253: h | F253: 0.216 | G253: Sinapi 90447 | H253: 18.297 | I253: Sinapi 88264 | L253: =ROUND(H253*F253,2) -> 3.95
C254: SF-00074 | D254: Auxiliar de encanador ou bombeiro hidráulico com encargos complementares | E254: h | F254: 0.055 | G254: Sinapi 90466 | H254: 13.977 | I254: Sinapi 88248 | L254: =ROUND(H254*F254,2) -> 0.77
C255: SF-00074 | D255: Encanador ou Bombeiro Hidráulico com Encargos Complementares | E255: h | F255: 0.391 | G255: Sinapi 90466 | H255: 18.081 | I255: Sinapi 88267 | L255: 7.07
C256: SF-00074 | D256: Argamassa traço 1:3 (cimento e areia média), preparo manual. AF_08/2014 | E256: m3 | F256: 0.003 | G256: Sinapi 90466 | H256: =OFFSET(INDEX('Composições Auxiliares'!A:L,MATCH(D256,'Composições Auxiliares'!A:A,0),12),2,0) -> 366.44 | I256: Sinapi 88629 | J256: =ROUND(H256*F256,2) -> 1.1
A258: SF-00075 | B258: Furo em concreto de até 75mm de diâmetro | E258: un | G258: Sinapi 90440
C260: SF-00075 | D260: Martelete ou rompedor pneumático manual, 28 kg, com silenciador - CHP diurno. AF_07/2016 | E260: chp | F260: 0.587 | G260: Sinapi 90440 | H260: =OFFSET(INDEX('Composições Auxiliares'!A:L,MATCH(D260,'Composições Auxiliares'!A:A,0),12),2,0) -> 16.42 | I260: Sinapi 5795 | J260: =ROUND(H260*F260,2) -> 9.64 | M260: =SUM(J260:L263) -> 67.62
C261: =IF(AND(D261<>"",A259=""),C260,IF(D261<>"",A259,"")) -> SF-00075 | D261: Martelete ou rompedor pneumático manual, 28 kg, com silenciador - CHI diurno. AF_07/2016 | E261: chi | F261: 1.29 | G261: Sinapi 90440 | H261: =OFFSET(INDEX('Composições Auxiliares'!A:L,MATCH(D261,'Composições Auxiliares'!A:A,0),12),2,0) -> 15.46 | I261: Sinapi 5952 | J261: =ROUND(H261*F261,2) -> 19.94
C262: SF-00075 | D262: Auxiliar de encanador ou bombeiro hidráulico com encargos complementares | E262: h | F262: 0.293 | G262: Sinapi 90440 | H262: 13.977 | I262: Sinapi 88248 | L262: =ROUND(H262*F262,2) -> 4.1
C263: SF-00075 | D263: Encanador ou Bombeiro Hidráulico com Encargos Complementares | E263: h | F263: 1.877 | G263: Sinapi 90440 | H263: 18.081 | I263: Sinapi 88267 | L263: =ROUND(H263*F263,2) -> 33.94
A265: SF-00076 | B265: Furo em concreto para diâmetros maiores que 75mm | E265: un | G265: Sinapi 90441
C267: SF-00076 | D267: Martelete ou rompedor pneumático manual, 28 kg, com silenciador - CHP diurno. AF_07/2016 | E267: chp | F267: 0.75 | G267: Sinapi 90441 | H267: =OFFSET(INDEX('Composições Auxiliares'!A:L,MATCH(D267,'Composições Auxiliares'!A:A,0),12),2,0) -> 16.42 | I267: Sinapi 5795 | J267: =ROUND(H267*F267,2) -> 12.32 | M267: =SUM(J267:L270) -> 86.36
C268: SF-00076 | D268: Martelete ou rompedor pneumático manual, 28 kg, com silenciador - CHI diurno. AF_07/2016 | E268: chi | F268: 1.647 | G268: Sinapi 90441 | H268: =OFFSET(INDEX('Composições Auxiliares'!A:L,MATCH(D268,'Composições Auxiliares'!A:A,0),12),2,0) -> 15.46 | I268: Sinapi 5952 | J268: =ROUND(H268*F268,2) -> 25.46
C269: SF-00076 | D269: Auxiliar de encanador ou bombeiro hidráulico com encargos complementares | E269: h | F269: 0.375 | G269: Sinapi 90441 | H269: 13.977 | I269: Sinapi 88248 | L269: =ROUND(H269*F269,2) -> 5.24
C270: SF-00076 | D270: Encanador ou Bombeiro Hidráulico com Encargos Complementares | E270: h | F270: 2.397 | G270: Sinapi 90441 | H270: 18.081 | I270: Sinapi 88267 | L270: =ROUND(H270*F270,2) -> 43.34
A272: SF-00077 | B272: Concreto virado em betoneira, Fck = 15 MPa | E272: m3 | G272: Sinapi 92873 + Sinapi 94963
C274: SF-00077 | D274: Carpinteiro de formas com encargos complementares | E274: h | F274: 1.846 | G274: Sinapi 92873 | H274: 18.009 | I274: Sinapi 88262 | L274: =ROUND(H274*F274,2) -> 33.24 | M274: =SUM(J274:L285) -> 401.51
C275: SF-00077 | D275: Pedreiro com Encargos Complementares | E275: h | F275: 1.846 | G275: Sinapi 92873 | H275: 18.117 | I275: Sinapi 88309 | L275: 33.44
C276: SF-00077 | D276: Servente com Encargos Complementares | E276: h | F276: =5.538 -> 5.538 | G276: Sinapi 92873 | H276: 13.167 | I276: Sinapi 88316 | L276: 72.92
C277: SF-00077 | D277: Vibrador de imersão, diâmetro de ponteira 45mm, motor elétrico trifásico potência de 2 CV - CHP diurno. AF_06/2015 | E277: chp | F277: 0.672 | G277: Sinapi 92873 | H277: 1.008 | I277: Sinapi 90586 | K277: =ROUND(H277*F277,2) -> 0.68
C278: SF-00077 | D278: Vibrador de imersão, diâmetro de ponteira 45mm, motor elétrico trifásico potência de 2 CV - CHI diurno. AF_06/2015 | E278: chi | F278: 1.174 | G278: Sinapi 92873 | H278: 0.27 | I278: Sinapi 90587 | K278: 0.32
C279: SF-00077 | D279: Areia media - posto jazida/fornecedor (retirado na jazida, sem transporte) | E279: m3 | F279: 0.836 | G279: Sinapi 94963 | H279: 79.875 | I279: Sinapi 370 | K279: 66.78
C280: SF-00077 | D280: Cimento Portland composto CP II-32 | E280: kg | F280: 273.06 | G280: Sinapi 94963 | H280: 0.369 | I280: Sinapi 1379 | K280: 100.76
C281: SF-00077 | D281: Pedra britada n. 1 (9,5 a 19 mm) posto pedreira/fornecedor, sem frete | E281: m3 | F281: 0.579 | G281: Sinapi 94963 | H281: 72.207 | I281: Sinapi 4721 | K281: 41.81
C282: SF-00077 | D282: Operador de betoneira estacionária/misturador com encargos complementares | E282: h | F282: 1.47 | G282: Sinapi 94963 | H282: 13.617 | I282: Sinapi 88377 | L282: =ROUND(H282*F282,2) -> 20.02
C283: SF-00077 | D283: Servente com Encargos Complementares | E283: h | F283: 2.33 | G283: Sinapi 94963 | H283: 13.167 | I283: Sinapi 88316 | L283: =ROUND(H283*F283,2) -> 30.68
C284: SF-00077 | D284: Betoneira capacidade nominal de 400 l, capacidade de mistura 310 l, motor elétrico trifásico potência de 2 HP, sem carregador - CHP diurno. AF_10/2014 | E284: chp | F284: 0.76 | G284: Sinapi 94963 | H284: 0.936 | I284: Sinapi 88830 | K284: =ROUND(H284*F284,2) -> 0.71
C285: SF-00077 | D285: Betoneira capacidade nominal de 400 l, capacidade de mistura 310 l, motor elétrico trifásico potência de 2 HP, sem carregador - CHI diurno. AF_10/2014 | E285: chi | F285: 0.71 | G285: Sinapi 94963 | H285: 0.207 | I285: Sinapi 88831 | K285: 0.15
A287: SF-00078 | B287: Concreto virado em betoneira, fck = 25MPa | E287: m3 | G287: Sinapi 92873 + Sinapi 94965
C289: SF-00078 | D289: Carpinteiro de formas com encargos complementares | E289: h | F289: 1.846 | G289: Sinapi 92873 | H289: 18.009 | I289: Sinapi 88262 | L289: =ROUND(H289*F289,2) -> 33.24 | M289: =SUM(J289:L300) -> 428.38
C290: SF-00078 | D290: Pedreiro com Encargos Complementares | E290: h | F290: 1.846 | G290: Sinapi 92873 | H290: 18.117 | I290: Sinapi 88309 | L290: =ROUND(H290*F290,2) -> 33.44
C291: SF-00078 | D291: Servente com Encargos Complementares | E291: h | F291: =5.538 -> 5.538 | G291: Sinapi 92873 | H291: 13.167 | I291: Sinapi 88316 | L291: =ROUND(H291*F291,2) -> 72.92
C292: SF-00078 | D292: Vibrador de imersão, diâmetro de ponteira 45mm, motor elétrico trifásico potência de 2 CV - CHP diurno. AF_06/2015 | E292: chp | F292: 0.672 | G292: Sinapi 92873 | H292: 1.008 | I292: Sinapi 90586 | K292: =ROUND(H292*F292,2) -> 0.68
C293: SF-00078 | D293: Vibrador de imersão, diâmetro de ponteira 45mm, motor elétrico trifásico potência de 2 CV - CHI diurno. AF_06/2015 | E293: chi | F293: 1.174 | G293: Sinapi 92873 | H293: 0.27 | I293: Sinapi 90587 | K293: =ROUND(H293*F293,2) -> 0.32
C294: SF-00078 | D294: Areia media - posto jazida/fornecedor (retirado na jazida, sem transporte) | E294: m3 | F294: 0.751 | G294: Sinapi 94965 | H294: 79.875 | I294: Sinapi 370 | K294: =ROUND(H294*F294,2) -> 59.99
C295: SF-00078 | D295: Cimento Portland composto CP II-32 | E295: kg | F295: 362.66 | G295: Sinapi 94965 | H295: 0.369 | I295: Sinapi 1379 | K295: =ROUND(H295*F295,2) -> 133.82
C296: SF-00078 | D296: Pedra britada n. 1 (9,5 a 19 mm) posto pedreira/fornecedor, sem frete | E296: m3 | F296: 0.593 | G296: Sinapi 94965 | H296: 72.207 | I296: Sinapi 4721 | K296: =ROUND(H296*F296,2) -> 42.82
C297: SF-00078 | D297: Servente com Encargos Complementares | E297: h | F297: =2.31 -> 2.31 | G297: Sinapi 94965 | H297: 13.167 | I297: Sinapi 88316 | L297: =ROUND(H297*F297,2) -> 30.42
C298: SF-00078 | D298: Operador de betoneira estacionária/misturador com encargos complementares | E298: h | F298: 1.46 | G298: Sinapi 94965 | H298: 13.617 | I298: Sinapi 88377 | L298: =ROUND(H298*F298,2) -> 19.88
C299: SF-00078 | D299: Betoneira capacidade nominal de 400 l, capacidade de mistura 310 l, motor elétrico trifásico potência de 2 HP, sem carregador - CHP diurno. AF_10/2014 | E299: chp | F299: 0.75 | G299: Sinapi 94965 | H299: 0.936 | I299: Sinapi 88830 | K299: =ROUND(H299*F299,2) -> 0.7
C300: SF-00078 | D300: Betoneira capacidade nominal de 400 l, capacidade de mistura 310 l, motor elétrico trifásico potência de 2 HP, sem carregador - CHI diurno. AF_10/2014 | E300: chi | F300: 0.71 | G300: Sinapi 94965 | H300: 0.207 | I300: Sinapi 88831 | K300: =ROUND(H300*F300,2) -> 0.15
A302: SF-00079 | B302: Escoramento metálico | E302: m2 | G302: Orse 07629 Adaptada
C304: SF-00079 | D304: Servente com Encargos Complementares | E304: h | F304: 0.2 | G304: Orse 07629 | H304: 13.167 | I304: Sinapi 88316 | L304: =ROUNDUP(H304*F304,2) -> 2.64 | M304: =SUM(J304:L307) -> 18.25
C305: SF-00079 | D305: Madeira Serrada Aparelhada De Macaranduba, Angelim Ou Equivalente Da Regiao | E305: m3 | F305: =1.1*0.0036 -> 0.00396 | G305: Orse 07629 Adaptada | H305: 2881.161 | I305: Sinapi 3989 | K305: =ROUND(H305*F305,2) -> 11.41
... 1418 more rows

Sheet Composições Auxiliares
A1: SENADO FEDERAL | B1: Ata de Registro de Preços para Reformas no SF - 2018/2019
A2: SECRETARIA DE INFRAESTRUTURA | B2: COMPOSIÇÕES AUXILIARES
A3: SERVIÇO DE ORÇAMENTOS | B3: Setembro de 2018 (data-base: Sinapi ago/2018, Pini ago/2018 e Orse jul/2018)
A5: Discriminação | C5: Especificação do Serviço | D5: Unidade | E5: Coeficiente | F5: Fonte do Coeficiente | G5: Preço | H5: Fonte do Preço | I5: Composição Auxiliar | J5: MAT. | K5: M.O. | L5: Total
A6: Martelete ou rompedor pneumático manual, 28 kg, com silenciador - CHP diurno. AF_07/2016 | D6: CHP | F6: =F8 -> Sinapi 5795
C8: Martelete ou rompedor pneumático manual, 28 kg, com silenciador - manutenção. af_07/2016 | D8: H | E8: 1 | F8: Sinapi 5795 | G8: 0.954 | H8: Sinapi 53863 | J8: =ROUND(G8*E8,2) -> 0.95 | L8: =SUM(I8:K11) -> 16.42
C9: Operador de martelete ou marteleteiro com encargos complementares | D9: H | E9: 1 | F9: Sinapi 5795 | G9: 14.526 | H9: Sinapi 88298 | K9: =ROUND(G9*E9,2) -> 14.53
C10: Martelete ou rompedor pneumático manual, 28 kg, com silenciador - depreciação. af_07/2016 | D10: H | E10: 1 | F10: Sinapi 5795 | G10: 0.765 | H10: Sinapi 95114 | J10: =ROUND(G10*E10,2) -> 0.77
C11: Martelete ou rompedor pneumático manual, 28 kg, com silenciador - juros. af_07/2016 | D11: H | E11: 1 | F11: Sinapi 5795 | G11: 0.171 | H11: Sinapi 95115 | J11: =ROUND(G11*E11,2) -> 0.17
A13: Martelete ou rompedor pneumático manual, 28 kg, com silenciador - CHI diurno. AF_07/2016 | D13: CHI | F13: =F15 -> Sinapi 5952
C15: Operador de martelete ou marteleteiro com encargos complementares | D15: H | E15: 1 | F15: Sinapi 5952 | G15: 14.526 | H15: Sinapi 88298 | K15: =ROUND(G15*E15,2) -> 14.53 | L15: =SUM(I15:K17) -> 15.46
C16: Martelete ou rompedor pneumático manual, 28 kg, com silenciador - depreciação. af_07/2016 | D16: H | E16: 1 | F16: Sinapi 5952 | G16: 0.765 | H16: Sinapi 95114 | J16: =ROUNDDOWN(G16*E16,2) -> 0.76
C17: Martelete ou rompedor pneumático manual, 28 kg, com silenciador - juros. af_07/2016 | D17: H | E17: 1 | F17: Sinapi 5952 | G17: 0.171 | H17: Sinapi 95115 | J17: 0.17
A19: Argamassa traço 1:3 (cimento e areia média), preparo manual. AF_08/2014 | D19: M3 | F19: =F21 -> Sinapi 88629
C21: Areia media - posto jazida/fornecedor (retirado na jazida, sem transporte) | D21: M3 | E21: 1.15 | F21: Sinapi 88629 | G21: 79.875 | H21: Sinapi 370 | J21: =ROUND(G21*E21,2) -> 91.86 | L21: =SUM(I21:K23) -> 366.44
C22: Cimento Portland composto CP II-32 | D22: KG | E22: 441.51 | F22: Sinapi 88629 | G22: 0.369 | H22: Sinapi 1379 | J22: 162.92
C23: Servente com encargos complementares | D23: H | E23: 8.48 | F23: Sinapi 88629 | G23: 13.167 | H23: Sinapi 88316 | K23: =ROUND(G23*E23,2) -> 111.66
A25: Fixação utilizando parafuso e bucha de nylon, somente mão de obra. af_10/2016 | D25: UN. | F25: =F27 -> Sinapi 95541
C27: Auxiliar de encanador ou bombeiro hidráulico com encargos complementares | D27: H | E27: 0.0227 | F27: Sinapi 95541 | G27: 13.977 | H27: Sinapi 88248 | K27: =ROUND(G27*E27,2) -> 0.32 | L27: =SUM(I27:K28) -> 3.25
C28: Encanador ou bombeiro hidráulico com encargos complementares | D28: H | E28: 0.1621 | F28: Sinapi 95541 | G28: 18.081 | H28: Sinapi 88267 | K28: 2.93
A30: Fixação de tubos horizontais de PVC, CPVC ou cobre diâmetros menores ou iguais a 40 mm ou eletrocalhas até 150mm de largura, com abraçadeira metálica rígida tipo d 1/2, fixada em perfilado em laje. af_05/2015 | D30: UN. | F30: =F32 -> Sinapi 91170
C32: Abracadeira em aco para amarracao de eletrodutos, tipo D, com 1/2" e parafuso de fixacao | D32: UN | E32: 0.65 | F32: Sinapi 91170 | G32: 0.801 | H32: Sinapi 392 | J32: =ROUNDUP(G32*E32,2) -> 0.53 | L32: =SUM(I32:K34) -> 1.92
C33: Auxiliar de encanador ou bombeiro hidráulico com encargos complementares | D33: H | E33: 0.01 | F33: Sinapi 91170 | G33: 13.977 | H33: Sinapi 88248 | K33: =ROUND(G33*E33,2) -> 0.14
C34: Encanador ou bombeiro hidráulico com encargos complementares | D34: H | E34: 0.069 | F34: Sinapi 91170 | G34: 18.081 | H34: Sinapi 88267 | K34: =ROUNDUP(G34*E34,2) -> 1.25
A36: Fabricação de fôrma para vigas, em chapa de madeira compensada resinada, E = 17 mm. AF_12/2015 | D36: M2 | F36: =F38 -> Sinapi 92265
C38: Chapa de madeira compensada resinada para forma de concreto, de *2,2 x 1,1* m, e = 17 mm | D38: M2 | E38: 1.19 | F38: Sinapi 92265 | G38: 21.798 | H38: Sinapi 1358 | J38: =ROUNDDOWN(G38*E38,2) -> 25.93 | L38: =SUM(I38:K45) -> 59.76
C39: Peca de madeira nativa / regional 7,5 x 7,5cm (3x3) nao aparelhada (p/forma) | D39: M | E39: 0.162 | F39: Sinapi 92265 | G39: 4.68 | H39: Sinapi 4491 | J39: =ROUNDDOWN(G39*E39,2) -> 0.75
C40: Peca de madeira nativa/regional 2,5 x 7,0 cm (sarrafo-p/forma) | D40: M | E40: 7.734 | F40: Sinapi 92265 | G40: 0.648 | H40: Sinapi 4517 | J40: 5.01
C41: Prego de aco polido com cabeca 17 x 21 (2 x 11) | D41: KG | E41: 0.155 | F41: Sinapi 92265 | G41: 9.477 | H41: Sinapi 5068 | J41: 1.46
C42: Ajudante de carpinteiro com encargos complementares | D42: H | E42: 0.222 | F42: Sinapi 92265 | G42: 15.066 | H42: Sinapi 88239 | K42: =ROUNDDOWN(G42*E42,2) -> 3.34
C43: Carpinteiro de formas com encargos complementares | D43: H | E43: 1.111 | F43: Sinapi 92265 | G43: 18.009 | H43: Sinapi 88262 | K43: =ROUNDDOWN(G43*E43,2) -> 20
C44: Serra circular de bancada com motor elétrico potência de 5HP, com coifa para disco 10" - CHP diurno. af_08/2015 | D44: CHP | E44: 0.054 | F44: Sinapi 92265 | G44: 15.804 | H44: Sinapi 91692 | I44: =ROUND(G44*E44,2) -> 0.85
C45: Serra circular de bancada com motor elétrico potência de 5HP, com coifa para disco 10" - CHI diurno. af_08/2015 | D45: CHI | E45: 0.169 | F45: Sinapi 92265 | G45: 14.319 | H45: Sinapi 91693 | I45: =ROUND(G45*E45,2) -> 2.42
A47: Fabricação de escoras de viga do tipo garfo, em madeira. af_12/2015 | D47: M | F47: =F49 -> Sinapi 92272
C49: Chapa de madeira compensada plastificada para forma de concreto, de 2,20 x 1,10 m, e = 18 mm | D49: M2 | E49: 0.126 | F49: Sinapi 92272 | G49: 31.005 | H49: Sinapi 1345 | J49: =ROUND(G49*E49,2) -> 3.91 | L49: =SUM(I49:K55) -> 18.82
C50: Peca de madeira nativa / regional 7,5 x 7,5cm (3x3) nao aparelhada (p/forma) | D50: M | E50: 2.27 | F50: Sinapi 92272 | G50: 4.68 | H50: Sinapi 4491 | J50: 10.62
C51: Prego de aco polido com cabeca 17 x 21 (2 x 11) | D51: KG | E51: 0.017 | F51: Sinapi 92272 | G51: 9.477 | H51: Sinapi 5068 | J51: 0.16
C52: Ajudante de carpinteiro com encargos complementares | D52: H | E52: 0.034 | F52: Sinapi 92272 | G52: 15.066 | H52: Sinapi 88239 | K52: =ROUND(G52*E52,2) -> 0.51
C53: Carpinteiro de formas com encargos complementares | D53: H | E53: 0.172 | F53: Sinapi 92272 | G53: 18.009 | H53: Sinapi 88262 | K53: 3.1
C54: Serra circular de bancada com motor elétrico potência de 5HP, com coifa para disco 10" - CHP diurno. af_08/2015 | D54: CHP | E54: 0.02 | F54: Sinapi 92272 | G54: 15.804 | H54: Sinapi 91692 | I54: =ROUND(G54*E54,2) -> 0.32
C55: Serra circular de bancada com motor elétrico potência de 5HP, com coifa para disco 10" - CHI diurno. af_08/2015 | D55: CHI | E55: 0.014 | F55: Sinapi 92272 | G55: 14.319 | H55: Sinapi 91693 | I55: =ROUND(G55*E55,2) -> 0.2
A57: Argamassa Traço 1:2:8 (Cimento, Cal E Areia Média) Para Emboço/Massa Única/Assentamento De Alvenaria De Vedação, Preparo Mecânico Com Betoneira 400 L. Af_06/2014 | D57: M3 | F57: =F59 -> Sinapi 87292
C59: Areia media - posto jazida/fornecedor (retirado na jazida, sem transporte) | D59: M3 | E59: 1.29 | F59: Sinapi 87292 | G59: 79.875 | H59: Sinapi 370 | J59: =ROUND(G59*E59,2) -> 103.04 | L59: =SUM(I59:K64) -> 354.81
C60: Cal hidratada CH-I para argamassas | D60: KG | E60: 193.7 | F60: Sinapi 87292 | G60: 0.603 | H60: Sinapi 1106 | J60: 116.8
C61: Cimento Portland composto CP II-32 | D61: KG | E61: 185.63 | F61: Sinapi 87292 | G61: 0.369 | H61: Sinapi 1379 | J61: 68.5
C62: Operador de betoneira estacionária/misturador com encargos complementares | D62: H | E62: 4.75 | F62: Sinapi 87292 | G62: 13.617 | H62: Sinapi 88377 | K62: =ROUND(G62*E62,2) -> 64.68
C63: Betoneira capacidade nominal de 400 L, capacidade de mistura 280 L, motor elétrico trifásico potência de 2 cv, sem carregador - CHP diurno. af_10/2014 | D63: CHP | E63: 1.11 | F63: Sinapi 87292 | G63: 0.936 | H63: Sinapi 88830 | J63: =ROUND(G63*E63,2) -> 1.04
C64: Betoneira capacidade nominal de 400 L, capacidade de mistura 280 L, motor elétrico trifásico potência de 2 cv, sem carregador - CHI diurno. af_10/2014 | D64: CHI | E64: 3.64 | F64: Sinapi 87292 | G64: 0.207 | H64: Sinapi 88831 | J64: =ROUND(G64*E64,2) -> 0.75
A66: Contrapiso em argamassa traço 1:4 (cimento e areia), preparo mecânico com betoneira 400 l, aplicado em áreas secas sobre laje, aderido, espessura 3cm. AF_06/2014 | D66: M2 | F66: =F68 -> Sinapi 87630
C68: Cimento Portland composto CP II-32 | D68: KG | E68: 0.5 | F68: Sinapi 87630 | G68: 0.369 | H68: Sinapi 1379 | J68: =ROUND(G68*E68,2) -> 0.18 | L68: =SUM(I68:K72) -> 27.07
C69: Aditivo adesivo liquido para argamassas de revestimentos cimenticios | D69: L | E69: 0.435 | F69: Sinapi 87630 | G69: 7.767 | H69: Sinapi 7334 | J69: 3.38
C70: Argamassa traço 1:4 (cimento e areia média) para contrapiso, preparo mecânico com betoneira 400 L. af_06/2014 | D70: M3 | E70: 0.0431 | F70: Sinapi 87630 | G70: 356.445 | H70: Sinapi 87301 | J70: 15.36
C71: Pedreiro com encargos complementares | D71: H | E71: 0.33 | F71: Sinapi 87630 | G71: 18.117 | H71: Sinapi 88309 | K71: =ROUND(G71*E71,2) -> 5.98
C72: Servente com encargos complementares | D72: H | E72: 0.165 | F72: Sinapi 87630 | G72: 13.167 | H72: Sinapi 88316 | K72: =ROUND(G72*E72,2) -> 2.17
A74: Reboco com argamassa pre-fabricada, espessura 0,5cm, preparo mecanico da argamassa | D74: M2 | F74: =F76 -> Sinapi 84027
C76: Cimento Portland composto CP II-32 | D76: KG | E76: 1 | F76: Sinapi 84027 | G76: 0.369 | H76: Sinapi 1379 | J76: =ROUND(G76*E76,2) -> 0.37 | L76: =SUM(I76:K79) -> 27.22
C77: Pedreiro com encargos complementares | D77: H | E77: 0.8 | F77: Sinapi 84027 | G77: 18.117 | H77: Sinapi 88309 | K77: =ROUND(G77*E77,2) -> 14.49
C78: Servente com encargos complementares | D78: H | E78: 0.8 | F78: Sinapi 84027 | G78: 13.167 | H78: Sinapi 88316 | K78: =ROUND(G78*E78,2) -> 10.53
C79: Argamassa traço 1:3 (cimento e areia média), preparo manual. af_08/2014 | D79: M3 | E79: 0.005 | F79: Sinapi 84027 | G79: 366.426 | H79: Sinapi 88629 | J79: =ROUND(G79*E79,2) -> 1.83
A81: Argamassa traço 1:3 (cimento e areia grossa) para chapisco convencional, preparo manual. AF_06/2014 | D81: M3 | F81: =F83 -> Sinapi 87377
C83: Areia grossa - posto jazida/fornecedor (retirado na jazida, sem transporte) | D83: M3 | E83: 1.05 | F83: Sinapi 87377 | G83: 72 | H83: Sinapi 367 | J83: =ROUND(G83*E83,2) -> 75.6 | L83: =SUM(I83:K85) -> 366.99
C84: Cimento Portland composto CP II-32 | D84: KG | E84: 401.09 | F84: Sinapi 87377 | G84: 0.369 | H84: Sinapi 1379 | J84: =ROUND(G84*E84,2) -> 148
C85: Servente com encargos complementares | D85: H | E85: 10.89 | F85: Sinapi 87377 | G85: 13.167 | H85: Sinapi 88316 | K85: =ROUND(G85*E85,2) -> 143.39
A87: Argamassa industrializada para chapisco colante, preparo com misturador de eixo horizontal de 300 kg. AF_06/2014 | D87: M3 | F87: =F89 -> Sinapi 87396
C89: Argamassa industrializada para chapisco colante | D89: KG | E89: 1991.07 | F89: Sinapi 87396 | G89: 1.215 | H89: Sinapi 37553 | J89: =ROUND(G89*E89,2) -> 2419.15 | L89: =SUM(I89:K92) -> 2496.66
C90: Operador de betoneira estacionária/misturador com encargos complementares | D90: H | E90: 5.29 | F90: Sinapi 87396 | G90: 13.617 | H90: Sinapi 88377 | K90: =ROUND(G90*E90,2) -> 72.03
C91: Misturador de argamassa, eixo horizontal, capacidade de mistura 300 kg, motor elétrico potência 5 cv - CHP diurno. af_06/2014 | D91: CHP | E91: 1.23 | F91: Sinapi 87396 | G91: 2.583 | H91: Sinapi 88386 | J91: =ROUND(G91*E91,2) -> 3.18
C92: Misturador de argamassa, eixo horizontal, capacidade de mistura 300 kg, motor elétrico potência 5 cv - CHI diurno. af_06/2014 | D92: CHI | E92: 4.06 | F92: Sinapi 87396 | G92: 0.567 | H92: Sinapi 88392 | J92: =ROUND(G92*E92,2) -> 2.3
A94: Argamassa traço 1:4 (cimento e areia média) para contrapiso, preparo manual. AF_06/2014 | D94: M3 | F94: =F96 -> Sinapi 87373
C96: Areia media - posto jazida/fornecedor (retirado na jazida, sem transporte) | D96: M3 | E96: 1.51 | F96: Sinapi 87373 | G96: 79.875 | H96: Sinapi 370 | J96: =ROUND(G96*E96,2) -> 120.61 | L96: =SUM(I96:K98) -> 432.43
C97: Cimento Portland composto CP II-32 | D97: KG | E97: 435.03 | F97: Sinapi 87373 | G97: 0.369 | H97: Sinapi 1379 | J97: 160.53
C98: Servente com encargos complementares | D98: H | E98: 11.49 | F98: Sinapi 87373 | G98: 13.167 | H98: Sinapi 88316 | K98: =ROUND(G98*E98,2) -> 151.29
A100: Argamassa traço 1:4 (cimento e areia média), preparo manual. AF_08/2014 | D100: M3 | F100: =F102 -> Sinapi 88631
C102: Areia media - posto jazida/fornecedor (retirado na jazida, sem transporte) | D102: M3 | E102: 1.23 | F102: Sinapi 88631 | G102: 79.875 | H102: Sinapi 370 | J102: =ROUND(G102*E102,2) -> 98.25 | L102: =SUM(I102:K104) -> 342.36
C103: Cimento Portland composto CP II-32 | D103: KG | E103: 355.04 | F103: Sinapi 88631 | G103: 0.369 | H103: Sinapi 1379 | J103: 131.01
C104: Servente com encargos complementares | D104: H | E104: 8.59 | F104: Sinapi 88631 | G104: 13.167 | H104: Sinapi 88316 | K104: =ROUND(G104*E104,2) -> 113.1
A106: Fixação de tubos verticais de PPR diâmetros menores ou iguais a 40 mm com abraçadeira metálica rígida tipo D 1/2", fixada em perfilado em alvenaria. af_05/2015 | D106: M | F106: =F108 -> Sinapi 91173
C108: Abracadeira em aco para amarracao de eletrodutos, tipo D, com 1/2" e parafuso de fixacao | D108: UN | E108: 0.333 | F108: Sinapi 91173 | G108: 0.801 | H108: Sinapi 392 | J108: =ROUND(G108*E108,2) -> 0.27 | L108: =SUM(I108:K110) -> 0.97
C109: Auxiliar de encanador ou bombeiro hidráulico com encargos complementares | D109: H | E109: 0.005 | F109: Sinapi 91173 | G109: 13.977 | H109: Sinapi 88248 | K109: =ROUND(G109*E109,2) -> 0.07
C110: Encanador ou bombeiro hidráulico com encargos complementares | D110: H | E110: 0.035 | F110: Sinapi 91173 | G110: 18.081 | H110: Sinapi 88267 | K110: =ROUND(G110*E110,2) -> 0.63
A112: Luva de emenda para eletroduto, aço galvanizado, DN 20 mm (3/4''), aparente, instalada em parede - fornecimento e instalação. af_11/2016_p | D112: UN. | F112: =F114 -> Sinapi 95757
C114: Luva para eletroduto, em aco galvanizado eletrolitico, diametro de 20 mm (3/4") | D114: UN | E114: 1 | F114: Sinapi 95757 | G114: 1.782 | H114: Sinapi 2637 | J114: =ROUND(G114*E114,2) -> 1.78 | L114: =SUM(I114:K116) -> 7.69
C115: Auxiliar de eletricista com encargos complementares | D115: H | E115: 0.1827 | F115: Sinapi 95757 | G115: 14.049 | H115: Sinapi 88247 | K115: =ROUND(G115*E115,2) -> 2.57
C116: Eletricista com encargos complementares | D116: H | E116: 0.1827 | F116: Sinapi 95757 | G116: 18.297 | H116: Sinapi 88264 | K116: 3.34
A118: Luva de emenda para eletroduto, aço galvanizado, DN 25 mm (1''), aparente, instalada em parede - fornecimento e instalação. af_11/2016_p | D118: UN. | F118: =F120 -> Sinapi 95758
C120: Luva para eletroduto, em aco galvanizado eletrolitico, diametro de 25 mm (1") | D120: UN | E120: 1 | F120: Sinapi 95758 | G120: 2.07 | H120: Sinapi 2638 | J120: =ROUND(G120*E120,2) -> 2.07 | L120: =SUM(I120:K122) -> 8.65
C121: Auxiliar de eletricista com encargos complementares | D121: H | E121: 0.2033 | F121: Sinapi 95758 | G121: 14.049 | H121: Sinapi 88247 | K121: =ROUND(G121*E121,2) -> 2.86
C122: Eletricista com encargos complementares | D122: H | E122: 0.2033 | F122: Sinapi 95758 | G122: 18.297 | H122: Sinapi 88264 | K122: 3.72
A124: Luva de emenda para eletroduto, aço galvanizado, DN 32 mm (1 1/4''), aparente, instalada em parede - fornecimento e instalação. af_11/2016_p | D124: UN. | F124: =F126 -> Sinapi 95759
C126: Luva para eletroduto, em aco galvanizado eletrolitico, diametro de 32 mm (1 1/4") | D126: UN | E126: 1 | F126: Sinapi 95759 | G126: 3.672 | H126: Sinapi 2639 | J126: =ROUND(G126*E126,2) -> 3.67 | L126: =SUM(I126:K128) -> 11.18
C127: Auxiliar de eletricista com encargos complementares | D127: H | E127: 0.2322 | F127: Sinapi 95759 | G127: 14.049 | H127: Sinapi 88247 | K127: =ROUND(G127*E127,2) -> 3.26
C128: Eletricista com encargos complementares | D128: H | E128: 0.2322 | F128: Sinapi 95759 | G128: 18.297 | H128: Sinapi 88264 | K128: 4.25
A130: Luva de emenda para eletroduto, aço galvanizado, DN 40 mm (1 1/2''), aparente, instalada em parede - fornecimento e instalação. af_11/2016_p | D130: UN. | F130: =F132 -> Sinapi 95760
C132: Luva para eletroduto, em aco galvanizado eletrolitico, diametro de 40 mm (1 1/2") | D132: UN | E132: 1 | F132: Sinapi 95760 | G132: 5.319 | H132: Sinapi 2644 | J132: =ROUND(G132*E132,2) -> 5.32 | L132: =SUM(I132:K134) -> 13.9
C133: Auxiliar de eletricista com encargos complementares | D133: H | E133: 0.2651 | F133: Sinapi 95760 | G133: 14.049 | H133: Sinapi 88247 | K133: =ROUND(G133*E133,2) -> 3.72
C134: Eletricista com encargos complementares | D134: H | E134: 0.2651 | F134: Sinapi 95760 | G134: 18.297 | H134: Sinapi 88264 | K134: =ROUNDUP(G134*E134,2) -> 4.86
A136: Luva de emenda para eletroduto, aço galvanizado, DN 50 mm (2''), aparente, instalada em parede - fornecimento e instalação. af_11/2016_p | D136: UN. | F136: Sinapi 95760 Adaptada
C138: Luva para eletroduto, em aco galvanizado eletrolitico, diametro de 50 mm (2") | D138: UN | E138: 1 | F138: Sinapi 95760 | G138: 7.416 | H138: Sinapi 2643 | J138: =ROUND(G138*E138,2) -> 7.42 | L138: =SUM(I138:K140) -> 15.99
C139: Auxiliar de eletricista com encargos complementares | D139: H | E139: 0.2651 | F139: Sinapi 95760 | G139: 14.049 | H139: Sinapi 88247 | K139: =ROUND(G139*E139,2) -> 3.72
C140: Eletricista com encargos complementares | D140: H | E140: 0.2651 | F140: Sinapi 95760 | G140: 18.297 | H140: Sinapi 88264 | K140: 4.85
A142: Fixação de tubos verticais de PPR diâmetros maiores que 40 mm e menores ou iguais a 75 mm com abraçadeira metálica rígida tipo D 1 1/2", fixada em perfilado em alvenaria. af_05/2015 | D142: UN. | F142: =F144 -> Sinapi 91174
C144: Abracadeira em aco para amarracao de eletrodutos, tipo D, com 1 1/2" e parafuso de fixacao | D144: UN | E144: 0.333 | F144: Sinapi 91174 | G144: 1.656 | H144: Sinapi 394 | J144: =ROUND(G144*E144,2) -> 0.55 | L144: =SUM(I144:K146) -> 1.89
C145: Auxiliar de encanador ou bombeiro hidráulico com encargos complementares | D145: H | E145: 0.009 | F145: Sinapi 91174 | G145: 13.977 | H145: Sinapi 88248 | K145: =ROUND(G145*E145,2) -> 0.13
C146: Encanador ou bombeiro hidráulico com encargos complementares | D146: H | E146: 0.067 | F146: Sinapi 91174 | G146: 18.081 | H146: Sinapi 88267 | K146: 1.21
A148: Fixação de tubos verticais de PPR diâmetros maiores que 40 mm e menores ou iguais a 75 mm com abraçadeira metálica rígida tipo D 2", fixada em perfilado em alvenaria. af_05/2015 | D148: UN. | F148: Sinapi 91174 Adaptada
C150: Abracadeira em aco para amarracao de eletrodutos, tipo D, com 2" e parafuso de fixacao | D150: UN | E150: 0.333 | F150: Sinapi 91174 | G150: 1.836 | H150: Sinapi 396 | J150: =ROUND(G150*E150,2) -> 0.61 | L150: =SUM(I150:K152) -> 1.95
C151: Auxiliar de encanador ou bombeiro hidráulico com encargos complementares | D151: H | E151: 0.009 | F151: Sinapi 91174 | G151: 13.977 | H151: Sinapi 88248 | K151: =ROUND(G151*E151,2) -> 0.13
C152: Encanador ou bombeiro hidráulico com encargos complementares | D152: H | E152: 0.067 | F152: Sinapi 91174 | G152: 18.081 | H152: Sinapi 88267 | K152: 1.21
A154: Aduela / marco / batente para porta de 90x210cm, padrão médio - fornecimento e montagem. AF_08/2015 | D154: UN. | F154: =F156 -> Sinapi 90803
C156: Batente/ portal/ aduela/ marco macico, e= *3 cm, l= *13 cm, *60 cm a 120* cm x *210 cm, em cedrinho/ angelim comercial/ eucalipto/ curupixa/ peroba/ cumaru ou equivalente da regiao (nao inclui alizares) | D156: JG | E156: 1 | F156: Sinapi 90803 | G156: 128.322 | H156: Sinapi 183 | J156: =ROUND(G156*E156,2) -> 128.32 | L156: =SUM(I156:K160) -> 208.02
C157: Prego de aco polido com cabeca 12 x 12 | D157: KG | E157: 0.0108 | F157: Sinapi 90803 | G157: 12.483 | H157: Sinapi 5066 | J157: =ROUND(G157*E157,2) -> 0.13
C158: Prego de aco polido com cabeca 18 x 30 (2 3/4 x 10) | D158: KG | E158: 0.0235 | F158: Sinapi 90803 | G158: 9.477 | H158: Sinapi 5075 | J158: 0.22
C159: Carpinteiro de esquadria com encargos complementares | D159: H | E159: 3.221 | F159: Sinapi 90803 | G159: 18.045 | H159: Sinapi 88261 | K159: =ROUNDUP(G159*E159,2) -> 58.13
C160: Servente com encargos complementares | D160: H | E160: 1.611 | F160: Sinapi 90803 | G160: 13.167 | H160: Sinapi 88316 | K160: =ROUNDUP(G160*E160,2) -> 21.22
A162: Argamassa traço 1:2:9 (cimento, cal e areia média) para emboço/massa única/assentamento de alvenaria de vedação, preparo mecânico com betoneira 600 L. af_06/2014 | D162: M3 | F162: =F164 -> Sinapi 87294
C164: Areia media - posto jazida/fornecedor (retirado na jazida, sem transporte) | D164: M3 | E164: 1.31 | F164: Sinapi 87294 | G164: 79.875 | H164: Sinapi 370 | J164: =ROUND(G164*E164,2) -> 104.64 | L164: =SUM(I164:K170) -> 339.64
C165: Cal hidratada CH-I para argamassas | D165: KG | E165: 174.87 | F165: Sinapi 87294 | G165: 0.603 | H165: Sinapi 1106 | J165: 105.45
C166: Cimento Portland composto CP II-32 | D166: KG | E166: 167.58 | F166: Sinapi 87294 | G166: 0.369 | H166: Sinapi 1379 | J166: 61.84
C167: Servente com encargos complementares | D167: H | E167: 0.88 | F167: Sinapi 87294 | G167: 13.167 | H167: Sinapi 88316 | K167: =ROUND(G167*E167,2) -> 11.59
C168: Operador de betoneira estacionária/misturador com encargos complementares | D168: H | E168: 3.76 | F168: Sinapi 87294 | G168: 13.617 | H168: Sinapi 88377 | K168: =ROUND(G168*E168,2) -> 51.2
C169: Betoneira capacidade nominal de 600 L, capacidade de mistura 360 L, motor elétrico trifásico potência de 4 cv, sem carregador - CHP diurno. af_11/2014 | D169: CHP | E169: 0.88 | F169: Sinapi 87294 | G169: 2.7 | H169: Sinapi 89225 | J169: =ROUND(G169*E169,2) -> 2.38
C170: Betoneira capacidade nominal de 600 L, capacidade de mistura 360 L, motor elétrico trifásico potência de 4 cv, sem carregador - CHI diurno. af_11/2014 | D170: CHI | E170: 2.88 | F170: Sinapi 87294 | G170: 0.882 | H170: Sinapi 89226 | J170: 2.54
A172: COMPOSIÇÕES AUXILIARES DAS AUXILIARES
A174: Serra circular de bancada com motor elétrico potência de 5HP, com coifa para disco 10" - CHI diurno. af_08/2015 | D174: CHI | F174: =F176 -> Sinapi 91693
C176: Operador de máquinas e equipamentos com encargos complementares | D176: H | E176: 1 | F176: Sinapi 91693 | G176: 14.256 | H176: Sinapi 88297 | K176: =ROUND(G176*E176,2) -> 14.26 | L176: =SUM(I176:K178) -> 14.32
C177: Serra circular de bancada com motor elétrico potência de 5HP, com coifa para disco 10" - depreciação. af_08/2015 | D177: H | E177: 1 | F177: Sinapi 91693 | G177: 0.054 | H177: Sinapi 91688 | J177: =ROUND(G177*E177,2) -> 0.05
C178: Serra circular de bancada com motor elétrico potência de 5HP, com coifa para disco 10" - juros. af_08/2015 | D178: H | E178: 1 | F178: Sinapi 91693 | G178: 0.009 | H178: Sinapi 91689 | J178: 0.01
A180: Serra circular de bancada com motor elétrico potência de 5HP, com coifa para disco 10" - CHP diurno. af_08/2015 | D180: CHP | F180: =F182 -> Sinapi 91692
C182: Operador de máquinas e equipamentos com encargos complementares | D182: H | E182: 1 | F182: Sinapi 91692 | G182: 14.256 | H182: Sinapi 88297 | K182: =ROUND(G182*E182,2) -> 14.26 | L182: =SUM(I182:K186) -> 15.81
C183: Serra circular de bancada com motor elétrico potência de 5HP, com coifa para disco 10" - depreciação. af_08/2015 | D183: H | E183: 1 | F183: Sinapi 91692 | G183: 0.054 | H183: Sinapi 91688 | J183: =ROUND(G183*E183,2) -> 0.05
C184: Serra circular de bancada com motor elétrico potência de 5HP, com coifa para disco 10" - juros. af_08/2015 | D184: H | E184: 1 | F184: Sinapi 91692 | G184: 0.009 | H184: Sinapi 91689 | J184: 0.01
C185: Serra circular de bancada com motor elétrico potência de 5HP, com coifa para disco 10" - manutenção. af_08/2015 | D185: H | E185: 1 | F185: Sinapi 91692 | G185: 0.036 | H185: Sinapi 91690 | J185: 0.04
C186: Serra circular de bancada com motor elétrico potência de 5HP, com coifa para disco 10" - materiais na operação. af_08/2015 | D186: H | E186: 1 | F186: Sinapi 91692 | G186: 1.449 | H186: Sinapi 91691 | J186: 1.45
A188: Argamassa traço 1:4 (cimento e areia média) para contrapiso, preparo mecânico com betoneira 400 L. af_06/2014 | D188: M3 | F188: =F190 -> Sinapi 87301
C190: Areia media - posto jazida/fornecedor (retirado na jazida, sem transporte) | D190: M3 | E190: 1.54 | F190: Sinapi 87301 | G190: 79.875 | H190: Sinapi 370 | J190: =ROUND(G190*E190,2) -> 123.01 | L190: =SUM(I190:K194) -> 356.45
C191: Cimento Portland composto CP II-32 | D191: KG | E191: 442.22 | F191: Sinapi 87301 | G191: 0.369 | H191: Sinapi 1379 | J191: =ROUND(G191*E191,2) -> 163.18
C192: Operador de betoneira estacionária/misturador com encargos complementares | D192: H | E192: 5.02 | F192: Sinapi 87301 | G192: 13.617 | H192: Sinapi 88377 | K192: =ROUND(G192*E192,2) -> 68.36
C193: Betoneira capacidade nominal de 400 L, capacidade de mistura 280 L, motor elétrico trifásico potência de 2 cv, sem carregador - CHP diurno. af_10/2014 | D193: CHP | E193: 1.17 | F193: Sinapi 87301 | G193: 0.936 | H193: Sinapi 88830 | J193: 1.1
C194: Betoneira capacidade nominal de 400 L, capacidade de mistura 280 L, motor elétrico trifásico potência de 2 cv, sem carregador - CHI diurno. af_10/2014 | D194: CHI | E194: 3.85 | F194: Sinapi 87301 | G194: 0.207 | H194: Sinapi 88831 | J194: 0.8

Sheet BDI
A1: Ata de Registro de Preços para Reformas no SF - 2018/2019
A2: BENEFÍCIOS E DESPESAS INDIRETAS - BDI
A4: BDI Edificações | F4: BDI mero fornecimento
A5: Componentes do BDI | B5: Cálculo sem CPRB | F5: Componentes do BDI | G5: Cálculo sem CPRB
B6: (não-desonerado) | G6: (não-desonerado)
B7: % considerado | G7: % considerado
A8: AC | B8: 0.04 | F8: AC | G8: 0.0169
A9: S+G | B9: 0.008 | F9: S+G | G9: 0.003
A10: R | B10: 0.0109 | F10: R | G10: 0.0056
A11: DF | B11: 0.01 | F11: DF | G11: 0.0085
A12: L | B12: 0.0616 | F12: L | G12: 0.035
A13: PIS | B13: 0.0065 | F13: PIS | G13: 0.0065
A14: COFINS | B14: 0.03 | F14: COFINS | G14: 0.03
A15: CPRB | B15: 0 | F15: CPRB | G15: 0
A16: ISS | B16: 0.02 | F16: ISS | G16: 0
A17: BDI Edificações | B17: =(((1+B8+B9+B10)*(1+B11)*(1+B12))/(1-(B13+B14+B15+B16))-1) -> 0.2033593242 | F17: BDI mero fornecimento | G17: =(((1+G8+G9+G10)*(1+G11)*(1+G12))/(1-(G13+G14+G15+G16))-1) -> 0.110964542
A19: Referências TCU - BDI Edificações | F19: Referências TCU - BDI mero fornecimento
B20: 1º Quartil | C20: Médio | D20: 3º Quartil | G20: 1º Quartil | H20: Médio | I20: 3º Quartil
A21: AC | B21: 0.03 | C21: 0.04 | D21: 0.055 | F21: AC | G21: 0.015 | H21: 0.0345 | I21: 0.0449
A22: S+G | B22: 0.008 | C22: 0.008 | D22: 0.01 | F22: S+G | G22: 0.003 | H22: 0.0048 | I22: 0.0082
A23: R | B23: 0.0097 | C23: 0.0127 | D23: 0.0127 | F23: R | G23: 0.0056 | H23: 0.0085 | I23: 0.0089
A24: DF | B24: 0.0059 | C24: 0.0123 | D24: 0.0139 | F24: DF | G24: 0.0085 | H24: 0.0085 | I24: 0.0111
A25: L | B25: 0.0616 | C25: 0.074 | D25: 0.0896 | F25: L | G25: 0.035 | H25: 0.0511 | I25: 0.0622
A27: BDI | B27: 0.2034 | C27: 0.2212 | D27: 0.25 | F27: BDI | G27: 0.111 | H27: 0.1402 | I27: 0.168
A47: Fonte: Acórdãos 2.639/2011-TCU-Plenário e 2.622/2013-TCU-Plenário.
